Workbook

Sheet Rental Calculator (hidden)
B2: CLIENT DATA INPUT SHEET
B4: COMPANY NAME | C4: Clover City Deep
B6: CONTACT PERSON | H6: CAPITAL | L6: =#REF! -> 
B8: ADDRESS | H8: TERM IN MONTHS | L8: 60
B10: ADDRESS LINE 2 | H10: TERM IN YEARS | L10: =L8/12& " YEARS" -> 5 YEARS
B12: ADDRESS LINE 3 | H12: RENTAL AMOUNT
B14: CONTACT NUMBER
H15: =-PMT(L22/12,L8,L6,,1) -> 
B16: E-MAIL ADDRESS
B18: ASSET DESCRIPTION
H22: INTEREST RATE | L22: =15.25% -> 15.25%

Sheet Printable Quote (hidden)
J8: =TODAY() -> 2022-02-24
C10: C L I E N T D E T A I L S
C11: COMPANY NAME | G11: : | H11: ='Rental Calculator'!C4 -> Clover City Deep
C12: CONTACT PERSON | G12: : | H12: ='Rental Calculator'!C6 -> 0
C14: ADDRESS | G14: : | H14: ='Rental Calculator'!C8 -> 0
C15: ADDRESS LINE 2 | H15: ='Rental Calculator'!C10 -> 0
C16: ADDRESS LINE 3 | H16: ='Rental Calculator'!C12 -> 0
C18: CONTACT NUMBER | G18: : | H18: ='Rental Calculator'!C14 -> (000) 000-0000
C19: E-MAIL ADDRESS | G19: : | H19: ='Rental Calculator'!C16 -> 0
C21: A S S E T D E S C R I P T I O N
C22: ='Rental Calculator'!C18 -> 0
C24: CAPITAL EX VAT | H24: ='Rental Calculator'!L6 -> 
C26: TERM | H26: ='Rental Calculator'!L8& " MONTHS" -> 60 MONTHS
C28: RENTAL AMOUNT EX VAT | H28: ='Rental Calculator'!H15 -> 
C30: DOCUMENTATION FEE EX VAT | H30: =H24*0.75% -> 
C32: OPTIONAL INSURANCE EX VAT | H32: =H24*0.5% -> 
C34: TERMS AND CONDITIONS
C35: • | D35: Factors exclude VAT
C36: • | D36: Factors are linked to prime
C37: • | D37: Calculations are done in advance taking current rental costing factors(including risk) into consideration & are subject to change
C38: • | D38: Factors exclude insurance and proof of insurance required. Insurance is available though Merchant West, quoted as above at 0.5% of the capital value
C39: • | D39: A once-off Documentation Fee is charged at a fixed 0.75% of the capital value
C40: • | D40: Rentals including a settlement / trade-in / second-hand of refurbished equipment need to be disclosed and require written approval.
C41: • | D41: Merchant West reserves the right to cancel any approvals upon knowledge of undisclosed items
C42: • | D42: Debit orders are mandatory (R30 excl. VAT need be added to the rental in the event of no debit order being signed)
C43: • | D43: Special structures ad factors are available upon request and written approval
C44: • | D44: Merchant West reserves the right to amend all errors arising out of a miscalculation
C45: • | D45: Ownership available at one additional rental (not calculated in quote)
C46: Merchant West or its cessionary may also give this information to any person who in its opinion, needs it to carry out any of Merchant West or its cessionary's rights or duties in terms of the contract or any law pertaining to the products I/we have requested.
C49: I certify that the above quote, terms and conditions have been explained to me in full.
C52: SIGNATURE: | G52: FULL NAME:
C55: DATE: | G55: CAPACITY:

Sheet Application (hidden)
D4: Please provide attached information: GL - Requirements for Credit Application
D6: CREDIT APPLICATION FORM
D7: COMPANY | F7: APPLICANT | AR7: REG NR
F8: TRADING AS | AR8: VAT REG NR
F9: (PTY) LTD | M9: LTD | R9: CC | W9: SOLE PROP | AD9: OTHER (Specify)
F10: TEL NR | X10: FAX NR | AP10: DATE ESTABLISHED
F11: HOW LONG UNDER CURRENT MANAGEMENT | AD11: WEB ADDRESS
F12: NATURE OF BUSINESS | AH12: INDUSTRY
F13: BANKERS | X13: BRANCH | AM13: CHEQUE ACC NR
F14: DATE ACC OPENED | V14: FINANCIAL YEAR END MONTH | AM14: LATEST FINANCIALS AVAILABLE (YR)
F15: STREET ADDRESS | AG15: POSTAL ADDRESS
X18: POSTAL CODE | AY18: POSTAL CODE
D20: SHAREHOLDERS | F20: FULL NAME | V20: ID NUMBER / REG NR | AC20: % SHARE | AG20: RESIDENTIAL ADDRESS | AV20: OWNER | AZ20: MARITAL STATUS
AV21: YES | AX21: NO | AZ21: ANC | BB21: COP | BD21: OTHER
F25: CONTACT FOR INSTALLATION CONFIRMATION | W25: NAME
F26: TEL NR | W26: CELL NR | AN26: EMAIL
F27: CONTACT FOR IINVOICING | W27: NAME
F28: TEL NR | W28: CELL NR | AN28: EMAIL
D30: OTHER | F30: LANDLORD NAME | AD30: CONTACT | AR30: TEL NR
F31: INSURANCE NAME | AD31: CONTACT | AR31: POLICY NR
F32: AUDITOR NAME | AD32: CONTACT | AR32: TEL NR
D34: EQUIPMENT | F34: MAKE | AB34: MODEL | AR34: QUANTITY | AX34: VALUE
F40: SUPPLIER | J40: LIGHT KINETICS (PTY) LTD
F41: VALUE | V41: INCL VAT | Z41: RENTAL | AO41: EXCL VAT | AT41: LINKED
F42: TERM | U42: MONTHS | AA42: QUARTERS | AI42: YEARS | AO42: ANNUAL ESCALATION | AZ42: 0 | BF42: %
E44: I/we consent to Merchant West (Pty) Ltd ("Merchant West") or its cessionary making enquiries about my/our credit record with any credit reference agency and any other party to confirm the details on this application. Merchant West or its cessionary may also provide credit reference agencies with regular updates regarding how I/we manage my/our account, including my/our failure to meet agreed terms and conditions. I/we consent that credit reference agencies may, in turn, make the records and details available to other credit grantors. Merchant West or its cessionary may also give this information to any person who in its opinion, needs it to carry out any of Merchant West or its cessionary's rights or duties in terms of the contract or any law pertaining to the products I/we have requested.
D50: I certify that the above details are true and correct
D52: SIGNATURE | T52: FULL NAMES | AK52: CAPACITY | AY52: DATE:

Sheet Sibonile School-Rev0
A1: Audit Report Sheet for Sibonile School for the Blind
A3: Client_Name | B3: Site_ID | C3: Site_Name | D3: Area | E3: Sub Area | F3: Lighting_Technology | G3: Fixture_Type | H3: Mount_Type | I3: Number_Lights_Per_Fixture | J3: Total_Number_of_Fixtures | K3: Number_Of_Faulty_Lights | L3: Lamp_Estimated_Capacity | M3: Light_Fixture_Estimated_Capacity | N3: Light_Measured_Capacity | O3: Estimated_Operating_Hours | P3: Measured_Operating_Hours | Q3: Estimated_Baseline_kWh | R3: Measured_Baseline_kWh | S3: Optimal_Operating_Hours
A4: Sibonile School for the Blind | B4: Garthdale AH | D4: Block A | E4: A2 | F4: Tubular Fluorescent | G4: Open Channel | H4: Surface Mount | I4: 2 | J4: 1 | L4: 80 | M4: =SUM(I4*L4) -> 160 | O4: 6
A5: Sibonile School for the Blind | B5: Garthdale AH | D5: Block A | E5: A2 | F5: Tubular Fluorescent | G5: Open Channel | H5: Suspended | I5: 1 | J5: 2 | L5: 80 | M5: =SUM(I5*L5) -> 80 | O5: 6
A6: Sibonile School for the Blind | B6: Garthdale AH | D6: Block A | E6: A3 | F6: Tubular Fluorescent | G6: Open Channel | H6: Surface Mount | I6: 2 | J6: 1 | L6: 80 | M6: =SUM(I6*L6) -> 160 | O6: 6
A7: Sibonile School for the Blind | B7: Garthdale AH | D7: Block A | E7: A3 | F7: Tubular Fluorescent | G7: Open Channel | H7: Suspended | I7: 1 | J7: 2 | L7: 80 | M7: =SUM(I7*L7) -> 80 | O7: 6
A8: Sibonile School for the Blind | B8: Garthdale AH | D8: Block A | E8: A4 | F8: Tubular Fluorescent | G8: Open Channel | H8: Surface Mount | I8: 2 | J8: 1 | L8: 80 | M8: =SUM(I8*L8) -> 160 | O8: 6
A9: Sibonile School for the Blind | B9: Garthdale AH | D9: Block A | E9: A4 | F9: Tubular Fluorescent | G9: Open Channel | H9: Suspended | I9: 1 | J9: 2 | L9: 80 | M9: =SUM(I9*L9) -> 80 | O9: 6
A10: Sibonile School for the Blind | B10: Garthdale AH | D10: Block A | E10: A5 | F10: Tubular Fluorescent | G10: Open Channel | H10: Suspended | I10: 1 | J10: 2 | L10: 80 | M10: 80 | O10: 6
A11: Sibonile School for the Blind | B11: Garthdale AH | D11: Block A | E11: A6 | F11: Tubular Fluorescent | G11: Open Channel | H11: Surface Mount | I11: 2 | J11: 1 | L11: 36 | M11: 72 | O11: 6
A12: Sibonile School for the Blind | B12: Garthdale AH | D12: Block A | E12: Foundation Block | F12: Tubular Fluorescent | G12: Open Channel | H12: Surface Mount | I12: 2 | J12: 1 | L12: 36 | M12: 72 | O12: 6
A13: Sibonile School for the Blind | B13: Garthdale AH | D13: Block A | E13: Foundation Block | F13: Compact Fluorescent | G13: Bowl Fitting | H13: Surface Mount | I13: 1 | J13: 2 | L13: 26 | M13: 26 | O13: 6
A14: Sibonile School for the Blind | B14: Garthdale AH | D14: Block A | E14: Passage | F14: Tubular Fluorescent | G14: Open Channel | H14: Surface Mount | I14: 2 | J14: 1 | L14: 36 | M14: 72 | O14: 6
A15: Sibonile School for the Blind | B15: Garthdale AH | D15: Block A | E15: A8 | F15: Tubular Fluorescent | G15: Open Channel | H15: Surface Mount | I15: 2 | J15: 1 | L15: 80 | M15: =SUM(I15*L15) -> 160 | O15: 6
A16: Sibonile School for the Blind | B16: Garthdale AH | D16: Block A | E16: A8 | F16: Tubular Fluorescent | G16: Open Channel | H16: Suspended | I16: 1 | J16: 2 | L16: 80 | M16: =SUM(I16*L16) -> 80 | O16: 6
A17: Sibonile School for the Blind | B17: Garthdale AH | D17: Block A | E17: A10 | F17: Tubular Fluorescent | G17: Open Channel | H17: Surface Mount | I17: 1 | J17: 1 | L17: 40 | M17: 40 | O17: 6
A18: Sibonile School for the Blind | B18: Garthdale AH | D18: Block A | E18: A11 | F18: Tubular Fluorescent | G18: Open Channel | H18: Surface Mount | I18: 2 | J18: 1 | L18: 80 | M18: =SUM(I18*L18) -> 160 | O18: 6
A19: Sibonile School for the Blind | B19: Garthdale AH | D19: Block A | E19: A11 | F19: Tubular Fluorescent | G19: Open Channel | H19: Suspended | I19: 1 | J19: 2 | L19: 80 | M19: =SUM(I19*L19) -> 80 | O19: 6
A20: Sibonile School for the Blind | B20: Garthdale AH | D20: Block A | E20: Admin / Computer | F20: Tubular Fluorescent | G20: Open Channel | H20: Surface Mount | I20: 2 | J20: 4 | L20: 36 | M20: 72 | O20: 6
A21: Sibonile School for the Blind | B21: Garthdale AH | D21: Block A | E21: Admin / Computer | F21: Halogen | G21: Downlight | H21: Recessed | I21: 1 | J21: 15 | L21: 50 | M21: 50 | O21: 6
A22: Sibonile School for the Blind | B22: Garthdale AH | D22: Block A | E22: Ladies Toilet | F22: Tubular Fluorescent | G22: Open Channel | H22: Surface Mount | I22: 1 | J22: 1 | L22: 36 | M22: 36 | O22: 6
A23: Sibonile School for the Blind | B23: Garthdale AH | D23: Block A | E23: Gents Toilet | F23: Tubular Fluorescent | G23: Open Channel | H23: Surface Mount | I23: 1 | J23: 1 | L23: 36 | M23: 36 | O23: 6
A24: Sibonile School for the Blind | B24: Garthdale AH | D24: Block A | E24: Kitchen | F24: Tubular Fluorescent | G24: Open Channel | H24: Surface Mount | I24: 2 | J24: 1 | L24: 36 | M24: =SUM(I24*L24) -> 72 | O24: 6
A25: Sibonile School for the Blind | B25: Garthdale AH | D25: Block A | E25: Finance | F25: Tubular Fluorescent | G25: Open Channel | H25: Surface Mount | I25: 1 | J25: 1 | L25: 80 | M25: =SUM(I25*L25) -> 80 | O25: 6
A26: Sibonile School for the Blind | B26: Garthdale AH | D26: Block A | E26: Finance | F26: Tubular Fluorescent | G26: Open Channel | H26: Surface Mount | I26: 2 | J26: 1 | L26: 36 | M26: =SUM(I26*L26) -> 72 | O26: 6
A27: Sibonile School for the Blind | B27: Garthdale AH | D27: Block A | E27: Foyer | F27: Tubular Fluorescent | G27: Open Channel | H27: Surface Mount | I27: 2 | J27: 1 | L27: 36 | M27: =SUM(I27*L27) -> 72 | O27: 6
A28: Sibonile School for the Blind | B28: Garthdale AH | D28: Block A | E28: Foyer | F28: Tubular Fluorescent | G28: Open Channel | H28: Surface Mount | I28: 1 | J28: 2 | L28: 36 | M28: 36 | O28: 6
A29: Sibonile School for the Blind | B29: Garthdale AH | D29: Block A | E29: LTSM Store | F29: Tubular Fluorescent | G29: Open Channel | H29: Surface Mount | I29: 1 | J29: 1 | L29: 80 | M29: 80 | O29: 6
A30: Sibonile School for the Blind | B30: Garthdale AH | D30: Block A | E30: Office | F30: Tubular Fluorescent | G30: Open Channel | H30: Surface Mount | I30: 2 | J30: 1 | L30: 58 | M30: 116 | O30: 6
A31: Sibonile School for the Blind | B31: Garthdale AH | D31: Block A | E31: Staffroom | F31: Tubular Fluorescent | G31: Open Channel | H31: Surface Mount | I31: 2 | J31: 1 | L31: 58 | M31: 116 | O31: 6
A32: Sibonile School for the Blind | B32: Garthdale AH | D32: Block A | E32: Staffroom | F32: Tubular Fluorescent | G32: Open Channel | H32: Surface Mount | I32: 2 | J32: 1 | L32: 36 | M32: 72 | O32: 6
A33: Sibonile School for the Blind | B33: Garthdale AH | D33: Block A | E33: Principal's Office | F33: Tubular Fluorescent | G33: Open Channel | H33: Surface Mount | I33: 2 | J33: 1 | L33: 36 | M33: 72 | O33: 6
A34: Sibonile School for the Blind | B34: Garthdale AH | D34: Block B | E34: Kitchen | F34: Tubular Fluorescent | G34: Open Channel | H34: Surface Mount | I34: 2 | J34: 1 | L34: 36 | M34: 72 | O34: 6
A35: Sibonile School for the Blind | B35: Garthdale AH | D35: Block B | E35: Foyer | F35: Tubular Fluorescent | G35: Open Channel | H35: Surface Mount | I35: 1 | J35: 2 | L35: 36 | M35: 36 | O35: 6
A36: Sibonile School for the Blind | B36: Garthdale AH | D36: Block B | E36: Foyer | F36: Tubular Fluorescent | G36: Open Channel | H36: Surface Mount | I36: 2 | J36: 3 | L36: 36 | M36: 72 | O36: 6
A37: Sibonile School for the Blind | B37: Garthdale AH | D37: Block B | E37: B1 | F37: Tubular Fluorescent | G37: Open Channel | H37: Surface Mount | I37: 2 | J37: 4 | L37: 36 | M37: 72 | O37: 6
A38: Sibonile School for the Blind | B38: Garthdale AH | D38: Block B | E38: B2 | F38: Tubular Fluorescent | G38: Open Channel | H38: Surface Mount | I38: 2 | J38: 4 | L38: 36 | M38: 72 | O38: 6
A39: Sibonile School for the Blind | B39: Garthdale AH | D39: Block B | E39: B3 | F39: Tubular Fluorescent | G39: Open Channel | H39: Surface Mount | I39: 2 | J39: 4 | L39: 36 | M39: 72 | O39: 6
A40: Sibonile School for the Blind | B40: Garthdale AH | D40: Block B | E40: B4 | F40: Tubular Fluorescent | G40: Open Channel | H40: Surface Mount | I40: 2 | J40: 4 | L40: 36 | M40: 72 | O40: 6
A41: Sibonile School for the Blind | B41: Garthdale AH | D41: Block B | E41: B5 | F41: Tubular Fluorescent | G41: Open Channel | H41: Surface Mount | I41: 2 | J41: 6 | L41: 36 | M41: 72 | O41: 6
A42: Sibonile School for the Blind | B42: Garthdale AH | D42: Block B | E42: Computer | F42: Tubular Fluorescent | G42: LBR Fitting | H42: Surface Mount | I42: 2 | J42: 7 | L42: 58 | M42: 116 | O42: 6
A43: Sibonile School for the Blind | B43: Garthdale AH | D43: Block AH - Girls Hostel | E43: AH1 | F43: Tubular Fluorescent | G43: Deco Fitting | H43: Surface Mount | I43: 2 | J43: 6 | L43: 36 | M43: 72 | O43: 6
A44: Sibonile School for the Blind | B44: Garthdale AH | D44: Block AH - Girls Hostel | E44: AH2A | F44: Tubular Fluorescent | G44: Open Channel | H44: Surface Mount | I44: 2 | J44: 6 | L44: 36 | M44: 72 | O44: 6
A45: Sibonile School for the Blind | B45: Garthdale AH | D45: Block AH - Girls Hostel | E45: AH2B | F45: Tubular Fluorescent | G45: Open Channel | H45: Surface Mount | I45: 2 | J45: 6 | L45: 36 | M45: 72 | O45: 6
A46: Sibonile School for the Blind | B46: Garthdale AH | D46: Block AH - Girls Hostel | E46: AH3 | F46: Tubular Fluorescent | G46: Open Channel | H46: Surface Mount | I46: 2 | J46: 3 | L46: 36 | M46: 72 | O46: 6
A47: Sibonile School for the Blind | B47: Garthdale AH | D47: Block AH - Girls Hostel | E47: AH4 | F47: Tubular Fluorescent | G47: Open Channel | H47: Surface Mount | I47: 2 | J47: 3 | L47: 36 | M47: 72 | O47: 6
A48: Sibonile School for the Blind | B48: Garthdale AH | D48: Block AH - Girls Hostel | E48: AH5 - Bathroom | F48: Tubular Fluorescent | G48: Deco Fitting | H48: Surface Mount | I48: 2 | J48: 2 | L48: 36 | M48: 72 | O48: 6
A49: Sibonile School for the Blind | B49: Garthdale AH | D49: Block AH - Girls Hostel | E49: AH5 - Bathroom | F49: Halogen | G49: Downlight | H49: Recessed | I49: 1 | J49: 7 | L49: 50 | M49: 50 | O49: 6
A50: Sibonile School for the Blind | B50: Garthdale AH | D50: Block AH - Girls Hostel | E50: AH6 | F50: Tubular Fluorescent | G50: Deco Fitting | H50: Surface Mount | I50: 2 | J50: 9 | L50: 36 | M50: 72 | O50: 6
A51: Sibonile School for the Blind | B51: Garthdale AH | D51: Block AH - Girls Hostel | E51: AH6 Passage | F51: Compact Fluorescent | G51: Bulkhead | H51: Surface Mount | I51: 1 | J51: 3 | L51: 26 | M51: 26 | O51: 6
A52: Sibonile School for the Blind | B52: Garthdale AH | D52: Block AH - Girls Hostel | E52: AH7 - Not Open | F52: Tubular Fluorescent | G52: Deco Fitting | H52: Surface Mount | I52: 2 | J52: 6 | L52: 36 | M52: 72 | O52: 6
A53: Sibonile School for the Blind | B53: Garthdale AH | D53: Block AH - Girls Hostel | E53: AH8 | F53: Tubular Fluorescent | G53: Deco Fitting | H53: Surface Mount | I53: 2 | J53: 10 | L53: 36 | M53: 72 | O53: 6
A54: Sibonile School for the Blind | B54: Garthdale AH | D54: Block AH - Girls Hostel | E54: AH9 | F54: Tubular Fluorescent | G54: Deco Fitting | H54: Surface Mount | I54: 2 | J54: 7 | L54: 36 | M54: 72 | O54: 6
A55: Sibonile School for the Blind | B55: Garthdale AH | D55: Block AH - Girls Hostel | E55: AH9 | F55: Halogen | G55: Downlight | H55: Recessed | I55: 1 | J55: 2 | L55: 50 | M55: 50 | O55: 6
A56: Sibonile School for the Blind | B56: Garthdale AH | D56: Block AH - Girls Hostel | E56: AH10 | F56: Tubular Fluorescent | G56: Open Channel | H56: Surface Mount | I56: 2 | J56: 4 | L56: 36 | M56: 72 | O56: 6
A57: Sibonile School for the Blind | B57: Garthdale AH | D57: Block AH - Girls Hostel | E57: AH11 | F57: Tubular Fluorescent | G57: Open Channel | H57: Surface Mount | I57: 2 | J57: 6 | L57: 36 | M57: 72 | O57: 6
A58: Sibonile School for the Blind | B58: Garthdale AH | D58: Block AH - Girls Hostel | E58: AH12 | F58: Tubular Fluorescent | G58: Open Channel | H58: Surface Mount | I58: 2 | J58: 1 | L58: 36 | M58: 72 | O58: 6
A59: Sibonile School for the Blind | B59: Garthdale AH | D59: Block AH - Girls Hostel | E59: AH13 | F59: Tubular Fluorescent | G59: Open Channel | H59: Surface Mount | I59: 2 | J59: 6 | L59: 36 | M59: 72 | O59: 6
A60: Sibonile School for the Blind | B60: Garthdale AH | D60: Block AH - Girls Hostel | E60: AH14A | F60: Tubular Fluorescent | G60: Open Channel | H60: Surface Mount | I60: 2 | J60: 9 | L60: 36 | M60: 72 | O60: 6
A61: Sibonile School for the Blind | B61: Garthdale AH | D61: Block AH - Girls Hostel | E61: AH14B | F61: Tubular Fluorescent | G61: Open Channel | H61: Surface Mount | I61: 2 | J61: 3 | L61: 36 | M61: 72 | O61: 6
A62: Sibonile School for the Blind | B62: Garthdale AH | D62: Block AH - Girls Hostel | E62: AH15 | F62: Tubular Fluorescent | G62: Deco Fitting | H62: Surface Mount | I62: 2 | J62: 2 | L62: 36 | M62: 72 | O62: 6
A63: Sibonile School for the Blind | B63: Garthdale AH | D63: Block AH - Girls Hostel | E63: AH15 | F63: Halogen | G63: Downlight | H63: Recessed | I63: 1 | J63: 10 | L63: 50 | M63: 50 | O63: 6
A64: Sibonile School for the Blind | B64: Garthdale AH | D64: Block AH - Girls Hostel | E64: AH16 | F64: Tubular Fluorescent | G64: Open Channel | H64: Surface Mount | I64: 2 | J64: 4 | L64: 36 | M64: 72 | O64: 6
A65: Sibonile School for the Blind | B65: Garthdale AH | D65: Block AH - Girls Hostel | E65: AH17A | F65: Tubular Fluorescent | G65: Open Channel | H65: Surface Mount | I65: 2 | J65: 6 | L65: 36 | M65: 72 | O65: 6
A66: Sibonile School for the Blind | B66: Garthdale AH | D66: Block AH - Girls Hostel | E66: AH17B | F66: Tubular Fluorescent | G66: Open Channel | H66: Surface Mount | I66: 2 | J66: 5 | L66: 36 | M66: 72 | O66: 6
A67: Sibonile School for the Blind | B67: Garthdale AH | D67: Block AH - Girls Hostel | E67: AH Passage | F67: Tubular Fluorescent | G67: Deco Fitting | H67: Surface Mount | I67: 2 | J67: 14 | L67: 36 | M67: 72 | O67: 6
A68: Sibonile School for the Blind | B68: Garthdale AH | D68: Block AH - Girls Hostel | E68: AH Outside Passage | F68: Tubular Fluorescent | G68: Deco Fitting | H68: Surface Mount | I68: 2 | J68: 1 | L68: 36 | M68: 72 | O68: 6
A69: Sibonile School for the Blind | B69: Garthdale AH | D69: Block GH - Boys Hostel | E69: GH Foyer | F69: Tubular Fluorescent - LED | G69: Open Channel | H69: Surface Mount | I69: 2 | J69: 3 | L69: 20 | M69: 40 | O69: 6
A70: Sibonile School for the Blind | B70: Garthdale AH | D70: Block GH - Boys Hostel | E70: GH18 - Toilets | F70: Tubular Fluorescent | G70: Open Channel | H70: Surface Mount | I70: 2 | J70: 2 | L70: 36 | M70: 72 | O70: 6
A71: Sibonile School for the Blind | B71: Garthdale AH | D71: Block GH - Boys Hostel | E71: GH18 - Toilets | F71: Tubular Fluorescent | G71: Open Channel | H71: Surface Mount | I71: 1 | J71: 1 | L71: 36 | M71: 36 | O71: 6
A72: Sibonile School for the Blind | B72: Garthdale AH | D72: Block GH - Boys Hostel | E72: GH19 - Toilets | F72: Tubular Fluorescent | G72: Open Channel | H72: Surface Mount | I72: 2 | J72: 2 | L72: 36 | M72: 72 | O72: 6
A73: Sibonile School for the Blind | B73: Garthdale AH | D73: Block GH - Boys Hostel | E73: GH19 - Toilets | F73: Tubular Fluorescent | G73: Open Channel | H73: Surface Mount | I73: 1 | J73: 1 | L73: 36 | M73: 36 | O73: 6
A74: Sibonile School for the Blind | B74: Garthdale AH | D74: Block GH - Boys Hostel | E74: GH17 | F74: Tubular Fluorescent | G74: Open Channel | H74: Surface Mount | I74: 2 | J74: 1 | L74: 36 | M74: 72 | O74: 6
A75: Sibonile School for the Blind | B75: Garthdale AH | D75: Block GH - Boys Hostel | E75: GH17 | F75: Tubular Fluorescent | G75: Open Channel | H75: Surface Mount | I75: 1 | J75: 1 | L75: 80 | M75: 80 | O75: 6
A76: Sibonile School for the Blind | B76: Garthdale AH | D76: Block GH - Boys Hostel | E76: GH17 | F76: Tubular Fluorescent | G76: Open Channel | H76: Surface Mount | I76: 1 | J76: 1 | L76: 58 | M76: 58 | O76: 6
A77: Sibonile School for the Blind | B77: Garthdale AH | D77: Block GH - Boys Hostel | E77: Passage | F77: Tubular Fluorescent | G77: Open Channel | H77: Surface Mount | I77: 2 | J77: 2 | L77: 36 | M77: 72 | O77: 6
A78: Sibonile School for the Blind | B78: Garthdale AH | D78: Block GH - Boys Hostel | E78: Passage | F78: Tubular Fluorescent - LED | G78: Open Channel | H78: Surface Mount | I78: 2 | J78: 2 | L78: 20 | M78: 40 | O78: 6
A79: Sibonile School for the Blind | B79: Garthdale AH | D79: Block GH - Boys Hostel | E79: Passage | F79: Compact Fluorescent | G79: Bulkhead | H79: Surface Mount | I79: 1 | J79: 2 | L79: 26 | M79: 26 | O79: 6
A80: Sibonile School for the Blind | B80: Garthdale AH | D80: Block GH - Boys Hostel | E80: Dressing Room | F80: Tubular Fluorescent | G80: Open Channel | H80: Surface Mount | I80: 2 | J80: 1 | L80: 36 | M80: 72 | O80: 6
A81: Sibonile School for the Blind | B81: Garthdale AH | D81: Block GH - Boys Hostel | E81: TV Room | F81: Tubular Fluorescent | G81: Open Channel | H81: Surface Mount | I81: 2 | J81: 1 | L81: 36 | M81: 72 | O81: 6
A82: Sibonile School for the Blind | B82: Garthdale AH | D82: Block GH - Boys Hostel | E82: Boys Room1 | F82: Tubular Fluorescent | G82: Open Channel | H82: Surface Mount | I82: 2 | J82: 1 | L82: 36 | M82: 72 | O82: 6
A83: Sibonile School for the Blind | B83: Garthdale AH | D83: Block GH - Boys Hostel | E83: Boys Room1 | F83: Tubular Fluorescent | G83: Open Channel | H83: Surface Mount | I83: 1 | J83: 1 | L83: 36 | M83: 36 | O83: 6
A84: Sibonile School for the Blind | B84: Garthdale AH | D84: Block GH - Boys Hostel | E84: Boys Room2 | F84: Tubular Fluorescent | G84: Open Channel | H84: Surface Mount | I84: 1 | J84: 2 | L84: 36 | M84: 36 | O84: 6
A85: Sibonile School for the Blind | B85: Garthdale AH | D85: Block GH - Boys Hostel | E85: GH24 | F85: Tubular Fluorescent | G85: Open Channel | H85: Surface Mount | I85: 2 | J85: 2 | L85: 36 | M85: 72 | O85: 6
A86: Sibonile School for the Blind | B86: Garthdale AH | D86: Block GH - Boys Hostel | E86: GH23 | F86: Tubular Fluorescent | G86: Open Channel | H86: Surface Mount | I86: 2 | J86: 2 | L86: 36 | M86: 72 | O86: 6
A87: Sibonile School for the Blind | B87: Garthdale AH | D87: Block GH - Boys Hostel | E87: GH22 | F87: Tubular Fluorescent | G87: Open Channel | H87: Surface Mount | I87: 2 | J87: 2 | L87: 36 | M87: 72 | O87: 6
A88: Sibonile School for the Blind | B88: Garthdale AH | D88: Block GH - Boys Hostel | E88: GH21 | F88: Tubular Fluorescent | G88: Open Channel | H88: Surface Mount | I88: 2 | J88: 4 | L88: 36 | M88: 72 | O88: 6
A89: Sibonile School for the Blind | B89: Garthdale AH | D89: Block GH - Boys Hostel | E89: GH20 | F89: Tubular Fluorescent | G89: Open Channel | H89: Surface Mount | I89: 2 | J89: 4 | L89: 36 | M89: 72 | O89: 6
A90: Sibonile School for the Blind | B90: Garthdale AH | D90: Block GH - Boys Hostel | E90: Passage | F90: Tubular Fluorescent | G90: Open Channel | H90: Surface Mount | I90: 1 | J90: 1 | L90: 58 | M90: 58 | O90: 6
A91: Sibonile School for the Blind | B91: Garthdale AH | D91: Block GH - Boys Hostel | E91: Passage | F91: Tubular Fluorescent | G91: Open Channel | H91: Surface Mount | I91: 2 | J91: 5 | L91: 36 | M91: =SUM(I91*L91) -> 72 | O91: 6
A92: Sibonile School for the Blind | B92: Garthdale AH | D92: Block GH - Boys Hostel | E92: Passage | F92: Compact Fluorescent | G92: Bulkhead | H92: Surface Mount | I92: 1 | J92: 2 | L92: 26 | M92: 26 | O92: 6
A93: Sibonile School for the Blind | B93: Garthdale AH | D93: Block GH - Boys Hostel | E93: Kitchen | F93: Tubular Fluorescent | G93: Open Channel | H93: Surface Mount | I93: 2 | J93: 6 | L93: 36 | M93: 72 | O93: 6
A94: Sibonile School for the Blind | B94: Garthdale AH | D94: Block GH - Boys Hostel | E94: Kitchen | F94: Compact Fluorescent | G94: Bowl Fitting | H94: Surface Mount | I94: 1 | J94: 1 | L94: 26 | M94: 26 | O94: 6
A95: Sibonile School for the Blind | B95: Garthdale AH | D95: Block GH - Boys Hostel | E95: GH15 | F95: Tubular Fluorescent | G95: Open Channel | H95: Surface Mount | I95: 1 | J95: 1 | L95: 58 | M95: 58 | O95: 6
A96: Sibonile School for the Blind | B96: Garthdale AH | D96: Block GH - Boys Hostel | E96: GH15 | F96: Compact Fluorescent | G96: Bowl Fitting | H96: Surface Mount | I96: 1 | J96: 1 | L96: 26 | M96: 26 | O96: 6
A97: Sibonile School for the Blind | B97: Garthdale AH | D97: Block GH - Boys Hostel | E97: GH14 | F97: Tubular Fluorescent | G97: Open Channel | H97: Surface Mount | I97: 1 | J97: 1 | L97: 36 | M97: 36 | O97: 6
A98: Sibonile School for the Blind | B98: Garthdale AH | D98: Block GH - Boys Hostel | E98: GH14 | F98: Compact Fluorescent | G98: Bulkhead | H98: Surface Mount | I98: 1 | J98: 2 | L98: 26 | M98: 26 | O98: 6
A99: Sibonile School for the Blind | B99: Garthdale AH | D99: Block GH - Boys Hostel | E99: GH13 | F99: Tubular Fluorescent | G99: Open Channel | H99: Surface Mount | I99: 2 | J99: 2 | L99: 36 | M99: 72 | O99: 6
A100: Sibonile School for the Blind | B100: Garthdale AH | D100: Block GH - Boys Hostel | E100: GH12 | F100: Tubular Fluorescent | G100: Open Channel | H100: Surface Mount | I100: 2 | J100: 2 | L100: 36 | M100: 72 | O100: 6
A101: Sibonile School for the Blind | B101: Garthdale AH | D101: Block GH - Boys Hostel | E101: GH11 | F101: Tubular Fluorescent | G101: Open Channel | H101: Surface Mount | I101: 2 | J101: 2 | L101: 36 | M101: 72 | O101: 6
A102: Sibonile School for the Blind | B102: Garthdale AH | D102: Block GH - Boys Hostel | E102: GH7 | F102: Tubular Fluorescent | G102: Open Channel | H102: Surface Mount | I102: 2 | J102: 2 | L102: 36 | M102: 72 | O102: 6
A103: Sibonile School for the Blind | B103: Garthdale AH | D103: Block GH - Boys Hostel | E103: GH6 | F103: Tubular Fluorescent | G103: Open Channel | H103: Surface Mount | I103: 2 | J103: 2 | L103: 36 | M103: 72 | O103: 6
A104: Sibonile School for the Blind | B104: Garthdale AH | D104: Block GH - Boys Hostel | E104: GH5 | F104: Tubular Fluorescent | G104: Open Channel | H104: Surface Mount | I104: 2 | J104: 2 | L104: 36 | M104: 72 | O104: 6
A105: Sibonile School for the Blind | B105: Garthdale AH | D105: Block GH - Boys Hostel | E105: GH4 | F105: Tubular Fluorescent | G105: Open Channel | H105: Surface Mount | I105: 2 | J105: 4 | L105: 36 | M105: 72 | O105: 6
A106: Sibonile School for the Blind | B106: Garthdale AH | D106: Block GH - Boys Hostel | E106: GH3 | F106: Tubular Fluorescent | G106: Open Channel | H106: Surface Mount | I106: 2 | J106: 4 | L106: 36 | M106: 72 | O106: 6
A107: Sibonile School for the Blind | B107: Garthdale AH | D107: Block GH - Boys Hostel | E107: GH2 | F107: Tubular Fluorescent | G107: Open Channel | H107: Surface Mount | I107: 2 | J107: 4 | L107: 36 | M107: 72 | O107: 6
A108: Sibonile School for the Blind | B108: Garthdale AH | D108: Block GH - Boys Hostel | E108: GH1 | F108: Tubular Fluorescent | G108: Open Channel | H108: Surface Mount | I108: 2 | J108: 3 | L108: 36 | M108: 72 | O108: 6
A109: Sibonile School for the Blind | B109: Garthdale AH | D109: Dining Hall | E109: Ladies Toilet | F109: Tubular Fluorescent | G109: Open Channel | H109: Surface Mount | I109: 2 | J109: 2 | L109: 36 | M109: 72 | O109: 6
A110: Sibonile School for the Blind | B110: Garthdale AH | D110: Dining Hall | E110: Ladies Toilet | F110: Compact Fluorescent | G110: Downlight | H110: Recessed | I110: 2 | J110: 1 | L110: 18 | M110: 36 | O110: 6
A111: Sibonile School for the Blind | B111: Garthdale AH | D111: Dining Hall | E111: Gents Toilet | F111: Tubular Fluorescent | G111: Open Channel | H111: Surface Mount | I111: 2 | J111: 2 | L111: 36 | M111: 72 | O111: 6
A112: Sibonile School for the Blind | B112: Garthdale AH | D112: Dining Hall | E112: Gents Toilet | F112: Compact Fluorescent | G112: Downlight | H112: Recessed | I112: 2 | J112: 1 | L112: 18 | M112: 36 | O112: 6
A113: Sibonile School for the Blind | B113: Garthdale AH | D113: Dining Hall | E113: Paraplegic Toilet | F113: Compact Fluorescent | G113: Downlight | H113: Recessed | I113: 2 | J113: 1 | L113: 18 | M113: 36 | O113: 6
A114: Sibonile School for the Blind | B114: Garthdale AH | D114: Dining Hall | E114: Foyer | F114: Compact Fluorescent | G114: Downlight | H114: Recessed | I114: 2 | J114: 3 | L114: 18 | M114: 36 | O114: 6
A115: Sibonile School for the Blind | B115: Garthdale AH | D115: Dining Hall | E115: Passage | F115: Compact Fluorescent | G115: Bulkhead | H115: Surface Mount | I115: 2 | J115: 10 | L115: 26 | M115: 52 | O115: 6
A116: Sibonile School for the Blind | B116: Garthdale AH | D116: Dining Hall | E116: Dining Hall 1 | F116: Compact Fluorescent | G116: Pendant | H116: Suspended | I116: 1 | J116: 12 | L116: 20 | M116: 20 | O116: 6
A117: Sibonile School for the Blind | B117: Garthdale AH | D117: Dining Hall | E117: Dining Hall 2 | F117: Compact Fluorescent | G117: Pendant | H117: Suspended | I117: 1 | J117: 12 | L117: 20 | M117: 20 | O117: 6
A118: Sibonile School for the Blind | B118: Garthdale AH | D118: Dining Hall | E118: Dining Hall 3 | F118: Compact Fluorescent | G118: Pendant | H118: Suspended | I118: 1 | J118: 12 | L118: 20 | M118: 20 | O118: 6
A119: Sibonile School for the Blind | B119: Garthdale AH | D119: Dining Hall | E119: Tuckshop | F119: Compact Fluorescent | G119: Downlight | H119: Recessed | I119: 2 | J119: 8 | L119: 18 | M119: 36 | O119: 6
A120: Sibonile School for the Blind | B120: Garthdale AH | D120: Dining Hall | E120: Cleaning Store | F120: Compact Fluorescent | G120: Bulkhead | H120: Surface Mount | I120: 2 | J120: 1 | L120: 26 | M120: 52 | O120: 6
A121: Sibonile School for the Blind | B121: Garthdale AH | D121: Dining Hall | E121: Store 1 | F121: Compact Fluorescent | G121: Bulkhead | H121: Surface Mount | I121: 2 | J121: 1 | L121: 26 | M121: 52 | O121: 6
A122: Sibonile School for the Blind | B122: Garthdale AH | D122: Dining Hall | E122: Store 2 | F122: Compact Fluorescent | G122: Bulkhead | H122: Surface Mount | I122: 2 | J122: 1 | L122: 26 | M122: 52 | O122: 6
A123: Sibonile School for the Blind | B123: Garthdale AH | D123: Dining Hall | E123: Store 3 | F123: Compact Fluorescent | G123: Bulkhead | H123: Surface Mount | I123: 2 | J123: 1 | L123: 26 | M123: 52 | O123: 6
A124: Sibonile School for the Blind | B124: Garthdale AH | D124: Dining Hall | E124: Changing Room | F124: Compact Fluorescent | G124: Bulkhead | H124: Surface Mount | I124: 2 | J124: 4 | L124: 26 | M124: 52 | O124: 6
A125: Sibonile School for the Blind | B125: Garthdale AH | D125: Dining Hall | E125: Kitchen | F125: Tubular Fluorescent | G125: Open Channel | H125: Surface Mount | I125: 2 | J125: 5 | L125: 36 | M125: 72 | O125: 6
A126: Sibonile School for the Blind | B126: Garthdale AH | D126: Dining Hall | E126: Kitchen | F126: Tubular Fluorescent | G126: Open Channel | H126: Surface Mount | I126: 1 | J126: 11 | L126: 36 | M126: 36 | O126: 6
A127: Sibonile School for the Blind | B127: Garthdale AH | D127: Dining Hall | E127: Kitchen | F127: Tubular Fluorescent | G127: Open Channel | H127: Surface Mount | I127: 2 | J127: 5 | L127: 58 | M127: 116 | O127: 6
A128: Sibonile School for the Blind | B128: Garthdale AH | D128: Dining Hall | E128: Kitchen | F128: Tubular Fluorescent | G128: Open Channel | H128: Surface Mount | I128: 1 | J128: 1 | L128: 58 | M128: 58 | O128: 6
A129: Sibonile School for the Blind | B129: Garthdale AH | D129: Dining Hall | E129: Kitchen | F129: Tubular Fluorescent - LED | G129: Open Channel | H129: Surface Mount | I129: 1 | J129: 1 | L129: 20 | M129: 20 | O129: 6
A130: Sibonile School for the Blind | B130: Garthdale AH | D130: Block C | E130: C1 | F130: Tubular Fluorescent | G130: Open Channel | H130: Surface Mount | I130: 2 | J130: 2 | L130: 36 | M130: 72 | O130: 6
A131: Sibonile School for the Blind | B131: Garthdale AH | D131: Block C | E131: C2 | F131: Tubular Fluorescent | G131: Open Channel | H131: Surface Mount | I131: 2 | J131: 2 | L131: 36 | M131: 72 | O131: 6
A132: Sibonile School for the Blind | B132: Garthdale AH | D132: Block C | E132: C3 | F132: Tubular Fluorescent | G132: Deco Fitting | H132: Surface Mount | I132: 2 | J132: 3 | L132: 36 | M132: 72 | O132: 6
A133: Sibonile School for the Blind | B133: Garthdale AH | D133: Block D | E133: D1 | F133: Tubular Fluorescent | G133: Deco Fitting | H133: Surface Mount | I133: 2 | J133: 2 | L133: 36 | M133: 72 | O133: 6
A134: Sibonile School for the Blind | B134: Garthdale AH | D134: Block D | E134: D2 | F134: Tubular Fluorescent | G134: Deco Fitting | H134: Surface Mount | I134: 2 | J134: 2 | L134: 36 | M134: 72 | O134: 6
A135: Sibonile School for the Blind | B135: Garthdale AH | D135: Block D | E135: D3 | F135: Tubular Fluorescent | G135: Open Channel | H135: Surface Mount | I135: 2 | J135: 4 | L135: 58 | M135: 116 | O135: 6
A136: Sibonile School for the Blind | B136: Garthdale AH | D136: Block E | E136: E1 | F136: Tubular Fluorescent | G136: Open Channel | H136: Surface Mount | I136: 2 | J136: 4 | L136: 36 | M136: 72 | O136: 6
A137: Sibonile School for the Blind | B137: Garthdale AH | D137: Block E | E137: E2 | F137: Tubular Fluorescent | G137: Open Channel | H137: Surface Mount | I137: 2 | J137: 4 | L137: 36 | M137: 72 | O137: 6
A138: Sibonile School for the Blind | B138: Garthdale AH | D138: Block E | E138: E3 | F138: Tubular Fluorescent | G138: Open Channel | H138: Surface Mount | I138: 1 | J138: 6 | L138: 36 | M138: 36 | O138: 6
A139: Sibonile School for the Blind | B139: Garthdale AH | D139: Block E | E139: E4 | F139: Tubular Fluorescent | G139: Open Channel | H139: Surface Mount | I139: 1 | J139: 6 | L139: 36 | M139: 36 | O139: 6
A140: Sibonile School for the Blind | B140: Garthdale AH | D140: Therapy House | E140: All | F140: Compact Fluorescent | G140: Bowl Fitting | H140: Surface Mount | I140: 1 | J140: 14 | L140: 26 | M140: 26 | O140: 6
A141: Sibonile School for the Blind | B141: Garthdale AH | D141: Block F - Hall | E141: Entrance | F141: Tubular Fluorescent | G141: Open Channel | H141: Surface Mount | I141: 2 | J141: 1 | L141: 36 | M141: 72 | O141: 6
A142: Sibonile School for the Blind | B142: Garthdale AH | D142: Block F - Hall | E142: Foyer | F142: Compact Fluorescent | G142: Bowl Fitting | H142: Surface Mount | I142: 1 | J142: 4 | L142: 26 | M142: 26 | O142: 6
A143: Sibonile School for the Blind | B143: Garthdale AH | D143: Block F - Hall | E143: Ladies Toilet | F143: Compact Fluorescent | G143: Bowl Fitting | H143: Surface Mount | I143: 1 | J143: 1 | L143: 26 | M143: 26 | O143: 6
A144: Sibonile School for the Blind | B144: Garthdale AH | D144: Block F - Hall | E144: Gents Toilet | F144: Tubular Fluorescent | G144: Open Channel | H144: Surface Mount | I144: 1 | J144: 1 | L144: 40 | M144: 40 | O144: 6
A145: Sibonile School for the Blind | B145: Garthdale AH | D145: Block F - Hall | E145: F2 | F145: Tubular Fluorescent | G145: Open Channel | H145: Surface Mount | I145: 1 | J145: 1 | L145: 58 | M145: 58 | O145: 6
A146: Sibonile School for the Blind | B146: Garthdale AH | D146: Block F - Hall | E146: Admin Brain | F146: Tubular Fluorescent | G146: Open Channel | H146: Surface Mount | I146: 2 | J146: 1 | L146: 36 | M146: 72 | O146: 6
A147: Sibonile School for the Blind | B147: Garthdale AH | D147: Block F - Hall | E147: Passage Upstairs | F147: Compact Fluorescent | G147: Bulkhead | H147: Surface Mount | I147: 1 | J147: 2 | L147: 26 | M147: 26 | O147: 6
A148: Sibonile School for the Blind | B148: Garthdale AH | D148: Block F - Hall | E148: Stores Upstairs | F148: Tubular Fluorescent | G148: Open Channel | H148: Surface Mount | I148: 2 | J148: 3 | L148: 36 | M148: 72 | O148: 6
A149: Sibonile School for the Blind | B149: Garthdale AH | D149: Block F - Hall | E149: Stores Downstairs | F149: Tubular Fluorescent | G149: Open Channel | H149: Surface Mount | I149: 2 | J149: 1 | L149: 36 | M149: 72 | O149: 6
A150: Sibonile School for the Blind | B150: Garthdale AH | D150: Block F - Hall | E150: Kitchen | F150: Tubular Fluorescent | G150: Deco Fitting | H150: Surface Mount | I150: 2 | J150: 1 | L150: 40 | M150: 80 | O150: 6
A151: Sibonile School for the Blind | B151: Garthdale AH | D151: Block F - Hall | E151: Hall | F151: Tubular Fluorescent | G151: Open Channel | H151: Surface Mount | I151: 2 | J151: 5 | L151: 36 | M151: 72 | O151: 6
A152: Sibonile School for the Blind | B152: Garthdale AH | D152: Block F - Hall | E152: Hall | F152: Tubular Fluorescent | G152: Open Channel | H152: Surface Mount | I152: 2 | J152: 2 | L152: 58 | M152: 116 | O152: 6
A153: Sibonile School for the Blind | B153: Garthdale AH | D153: Block F - Hall | E153: Hall | F153: Incandescent | G153: High Bay | H153: Recessed | I153: 1 | J153: 12 | L153: 500 | M153: 500 | O153: 6
A154: Sibonile School for the Blind | B154: Garthdale AH | D154: Block F - Hall | E154: Hall | F154: Reflector Lamps | G154: Downlight | H154: Recessed | I154: 1 | J154: 6 | L154: 250 | M154: 250 | O154: 6
A155: Sibonile School for the Blind | B155: Garthdale AH | D155: Block F - Hall | E155: Behind Stage | F155: Tubular Fluorescent | G155: Open Channel | H155: Surface Mount | I155: 2 | J155: 2 | L155: 36 | M155: =SUM(I155*L155) -> 72 | O155: 6
A156: Sibonile School for the Blind | B156: Garthdale AH | D156: Block F - Hall | E156: Behind Stage | F156: Compact Fluorescent | G156: Bowl Fitting | H156: Surface Mount | I156: 1 | J156: 1 | L156: 26 | M156: 26 | O156: 6
A157: Sibonile School for the Blind | B157: Garthdale AH | D157: Block F - Hall | E157: Under Stage | F157: Compact Fluorescent | G157: Bowl Fitting | H157: Surface Mount | I157: 1 | J157: 6 | L157: 26 | M157: 26 | O157: 6
A158: Sibonile School for the Blind | B158: Garthdale AH | D158: Outside | E158: All | F158: Metal Halide | G158: Floodlight | H158: Wall Mount | I158: 1 | J158: 17 | L158: 400 | M158: 400 | O158: 6
A159: Sibonile School for the Blind | B159: Garthdale AH | D159: Outside | E159: All | F159: Mercury Vapour | G159: Floodlight | H159: Wall Mount | I159: 1 | J159: 6 | L159: 125 | M159: 125 | O159: 6
A160: Sibonile School for the Blind | B160: Garthdale AH | D160: Outside | E160: All | F160: Compact Fluorescent | G160: Floodlight | H160: Wall Mount | I160: 1 | J160: 2 | L160: 85 | M160: 85 | O160: 6
A161: Sibonile School for the Blind | B161: Garthdale AH | D161: Outside | E161: All | F161: Halogen | G161: Floodlight | H161: Wall Mount | I161: 1 | J161: 9 | L161: 500 | M161: 500 | O161: 6
A162: Sibonile School for the Blind | B162: Garthdale AH | D162: Outside | E162: All | F162: Compact Fluorescent | G162: Bulkhead | H162: Wall Mount | I162: 1 | J162: 27 | L162: 26 | M162: 26 | O162: 6
A163: Sibonile School for the Blind | B163: Garthdale AH | D163: Outside | E163: All | F163: Compact Fluorescent | G163: Bulkhead | H163: Wall Mount | I163: 2 | J163: 21 | L163: 26 | M163: 52 | O163: 6
A164: Sibonile School for the Blind | B164: Garthdale AH | D164: Outside | E164: All | F164: Compact Fluorescent | G164: Bowl Fitting | H164: Wall Mount | I164: 1 | J164: 2 | L164: 26 | M164: 26 | O164: 6
A165: Sibonile School for the Blind | B165: Garthdale AH | D165: Outside | E165: All | F165: Tubular Fluorescent | G165: Open Channel | H165: Surface Mount | I165: 1 | J165: 1 | L165: 36 | M165: 36 | O165: 6
A166: Sibonile School for the Blind | B166: Garthdale AH | D166: Outside | E166: All | F166: Tubular Fluorescent | G166: Open Channel | H166: Surface Mount | I166: 2 | J166: 4 | L166: 36 | M166: 72 | O166: 6
A167: Sibonile School for the Blind | B167: Garthdale AH | D167: Outside | E167: Garage | F167: Tubular Fluorescent | G167: Open Channel | H167: Surface Mount | I167: 2 | J167: 1 | L167: 36 | M167: 72 | O167: 6
A168: Sibonile School for the Blind | B168: Garthdale AH | D168: Outside | E168: Garage | F168: Tubular Fluorescent | G168: Open Channel | H168: Surface Mount | I168: 2 | J168: 1 | L168: 58 | M168: 116 | O168: 6
A169: Sibonile School for the Blind | B169: Garthdale AH | D169: Outside | E169: Tuckshop | F169: Tubular Fluorescent | G169: Open Channel | H169: Surface Mount | I169: 1 | J169: 3 | L169: 40 | M169: 40 | O169: 6
A170: Sibonile School for the Blind | B170: Garthdale AH | D170: Outside | E170: All | F170: Metal Halide | G170: Floodlight | H170: Wall Mount | I170: 1 | J170: 16 | L170: 400 | M170: 400 | O170: 6
A171: Sibonile School for the Blind | B171: Garthdale AH | D171: Outside | E171: All | F171: Metal Halide | G171: Floodlight | H171: Wall Mount | I171: 1 | J171: 16 | L171: 400 | M171: 400 | O171: 6

Sheet Study Data_Rev0
B1: Audit Report Sheet for Sibonile School for the Blind | V1: Audit Report Sheet for Sibonile School for the Blind
B4: Survey information | C4: Date: | D4: Site:
C5: 2021-09-26 | D5: Sibonile School for the Blind | AC5: 1.07
B6: Current Installation | V6: QUOTATION
C8: Light Type | D8: Qty | E8: #Lamps | F8: Lamp W | G8: Loss Fact. | H8: Indiv. Load | I8: Total Load | J8: Ops. Hrs. | K8: kWh per month | L8: kWh per Annum | M8: Lamp Lifespan | N8: Avg. Group Re-lamp in years | O8: Cost of Lamp* | P8: Cost of Ballast | Q8: Labour cost of Re-lamp* | R8: Combined maintenance cost | S8: Annual Maintenance Factor | T8: Annual Maintenance Costs | V8: Luminaire Description | W8: Qty | X8: Fixture Unit Price | Y8: Fixture Unit Price Total | Z8: Installation Unit Price | AA8: Installation Unit Price Total | AB8: Total
V9: =B9 -> 0
C10: Bulkhead / Bowl Fitting (1 Lamp) | D10: 70 | E10: 1 | F10: 26 | G10: 1.10 | H10: =G10*F10*E10 -> 28.6 | I10: =H10*D10 -> 2,002 | J10: 6 | K10: =(I10*J10)/1000*30.5 -> 366.37 | L10: =(I10*J10)/1000*365 -> 4,384.38 | M10: 10,000.00 | N10: =M10/(J10*365)*0.8 -> 3.65 | O10: R 55.00 | P10: 0 | Q10: R 50.00 | R10: =(O10*E10)+(P10/5)+Q10 -> R 105.00 | S10: =1/N10 -> 27.38% | T10: =D10*R10*S10 -> R 2,012 | V10: Titan Bulkhead 21W | W10: 0 | X10: =740*AC$5 -> R791.80 | Y10: =X10*W10 -> R0.00 | AA10: =SUM(W10*Z10) -> R0.00 | AB10: =SUM(Y10,AA10) -> R0.00
C11: Bulkhead / Bowl Fitting (2 Lamp) | D11: 39 | E11: 2 | F11: 26 | G11: 1.10 | H11: 57.2 | I11: 2,231 | J11: 6 | K11: 408.24 | L11: =(I11*J11)/1000*365 -> 4,885.45 | M11: 10,000.00 | N11: 3.65 | O11: R 55.00 | P11: 0 | Q11: R 50.00 | R11: R 160.00 | S11: 27.38% | T11: R 1,708 | V11: Titan Bulkhead 21W | W11: 0 | X11: =740*AC$5 -> R791.80 | Y11: =X11*W11 -> R0.00 | AA11: =SUM(W11*Z11) -> R0.00 | AB11: =SUM(Y11,AA11) -> R0.00
C12: Downlight CFL | D12: 14 | E12: 2 | F12: 18 | G12: 1.10 | H12: 39.6 | I12: 554 | J12: 6 | K12: 101.46 | L12: 1,214.14 | M12: 10,000.00 | N12: 3.65 | O12: R 55.00 | P12: R 229.00 | Q12: R 50.00 | R12: R 205.80 | S12: 27.38% | T12: R 789 | V12: DLV-R 6" 17W | W12: 0 | X12: =930*AC$5 -> R995.10 | Y12: =X12*W12 -> R0.00 | AA12: =SUM(W12*Z12) -> R0.00 | AB12: =SUM(Y12,AA12) -> R0.00
C13: Lamps | D13: 36 | E13: 1 | F13: 20 | G13: 1.10 | H13: 22 | I13: 792 | J13: 6 | K13: 144.94 | L13: 1,734.48 | M13: 10,000.00 | N13: 3.65 | O13: R 85.00 | P13: 0 | Q13: R 50.00 | R13: R 135.00 | S13: 27.38% | T13: R 1,330 | V13: LED Lamp 10W | W13: 0 | X13: =150*AC$5 -> R160.50 | Y13: R0.00 | AA13: R0.00 | AB13: R0.00
C14: Downlight Halogen | D14: 34 | E14: 1 | F14: 50 | G14: 1.10 | H14: 55 | I14: 1,870 | J14: 6 | K14: 342.21 | L14: 4,095.30 | M14: 10,000.00 | N14: 3.65 | O14: R 55.00 | P14: R 200.00 | Q14: R 50.00 | R14: R 145.00 | S14: 27.38% | T14: R 1,350 | V14: DLV GU10 6W Splash | W14: =D14 -> 34 | X14: =300*AC$5 -> R321.00 | Y14: R10,914.00 | AA14: R0.00 | AB14: R10,914.00
C15: Downlight Reflector Lamps | D15: 6 | E15: 1 | F15: 250 | G15: 1.10 | H15: 275 | I15: 1,650 | J15: 6 | K15: 301.95 | L15: 3,613.50 | M15: 10,000.00 | N15: 3.65 | O15: R 500.00 | P15: 0 | Q15: R 450.00 | R15: R 950.00 | S15: 27.38% | T15: R 1,560 | V15: DLV-R 8" 49W | W15: 6 | X15: =1100*AC$5 -> R1,177.00 | Y15: R7,062.00 | AA15: R0.00 | AB15: R7,062.00
C16: Open Channel / Deco | D16: 41 | E16: 1 | F16: 36 | G16: 1.10 | H16: 39.6 | I16: 1,624 | J16: 6 | K16: 297.12 | L16: 3,555.68 | M16: 15,000.00 | N16: 5.48 | O16: R 40.00 | P16: R 229.00 | Q16: R 50.00 | R16: R 135.80 | S16: 18.25% | T16: R 1,016 | V16: E-Batten 32W / Marea | W16: 0 | X16: =950*AC$5 -> R1,016.50 | Y16: R0.00 | AA16: R0.00 | AB16: R0.00
C17: Open Channel / Deco | D17: 5 | E17: 1 | F17: 58 | G17: 1.10 | H17: 63.8 | I17: 319 | J17: 6 | K17: 58.38 | L17: 698.61 | M17: 15,000.00 | N17: 5.48 | O17: R 40.00 | P17: R 229.00 | Q17: R 50.00 | R17: R 135.80 | S17: 18.25% | T17: R 124 | V17: E-Batten 32W / Marea | W17: 5 | X17: R1,016.50 | Y17: R5,082.50 | AA17: R0.00 | AB17: R5,082.50
C18: Open Channel / Deco | D18: 15 | E18: 1 | F18: 80 | G18: 1.10 | H18: 88 | I18: 1,320 | J18: 6 | K18: 241.56 | L18: 2,890.80 | M18: 15,000.00 | N18: 5.48 | O18: R 300.00 | P18: R 800.00 | Q18: R 50.00 | R18: R 510.00 | S18: 18.25% | T18: R 1,396 | V18: E-Batten 32W / Marea | W18: 15 | X18: R1,016.50 | Y18: R15,247.50 | AA18: R0.00 | AB18: R15,247.50
C19: Open Channel / Deco | D19: 266 | E19: 2 | F19: 36 | G19: 1.10 | H19: 79.2 | I19: 21,067 | J19: 6 | K19: 3,855.30 | L19: 46,137.17 | M19: 15,000.00 | N19: 5.48 | O19: R 40.00 | P19: R 229.00 | Q19: R 50.00 | R19: R 175.80 | S19: 18.25% | T19: R 8,534 | V19: E-Batten 32W / Marea | W19: 0 | X19: R1,016.50 | Y19: R0.00 | AA19: R0.00 | AB19: R0.00
C20: Open Channel / Deco | D20: 14 | E20: 2 | F20: 58 | G20: 1.10 | H20: 127.6 | I20: 1,786 | J20: 6 | K20: 326.91 | L20: 3,912.22 | M20: 15,000.00 | N20: 5.48 | O20: R 40.00 | P20: R 229.00 | Q20: R 50.00 | R20: R 175.80 | S20: 18.25% | T20: R 449 | V20: E-Batten 32W / Marea | W20: 14 | X20: R1,016.50 | Y20: R14,231.00 | AA20: R0.00 | AB20: R14,231.00
C21: Open Channel / Deco | D21: 5 | E21: 2 | F21: 80 | G21: 1.10 | H21: 176 | I21: 880 | J21: 6 | K21: 161.04 | L21: 1,927.20 | M21: 15,000.00 | N21: 5.48 | O21: R 300.00 | P21: R 800.00 | Q21: R 50.00 | R21: R 810.00 | S21: 18.25% | T21: R 739 | V21: E-Batten 32W / Marea | W21: 5 | X21: R1,016.50 | Y21: R5,082.50 | AA21: R0.00 | AB21: R5,082.50
C22: Surface LBR Fitting | D22: 7 | E22: 2 | F22: 58 | G22: 1.10 | H22: 127.6 | I22: 893 | J22: 6 | K22: 163.46 | L22: 1,956.11 | M22: 15,000.00 | N22: 5.48 | O22: R 40.00 | P22: R 229.00 | Q22: R 50.00 | R22: R 175.80 | S22: 18.25% | T22: R 225 | V22: EOS 600x600 LED Panel | W22: 7 | X22: =800*AC$5 -> R856.00 | Y22: R5,992.00 | AA22: R0.00 | AB22: R5,992.00
C23: Open Channel / Deco LED 1 Lamp | D23: 1 | E23: 1 | F23: 20 | G23: 1.10 | H23: 22 | I23: 22 | J23: 6 | K23: 4.03 | L23: 48.18 | M23: 8,000.00 | N23: 2.92 | O23: R 100.00 | Q23: R 50.00 | R23: R 150.00 | S23: 34.22% | T23: R 51 | V23: E-Batten 32W / Marea | W23: 1 | X23: =950*AC$5 -> R1,016.50 | Y23: R1,016.50 | AA23: R0.00 | AB23: R1,016.50
C24: Open Channel / Deco LED 2 Lamp | D24: 5 | E24: 2 | F24: 20 | G24: 1.10 | H24: 44 | I24: 220 | J24: 6 | K24: 40.26 | L24: 481.80 | M24: 8,000.00 | N24: 2.92 | O24: R 100.00 | Q24: R 50.00 | R24: R 250.00 | S24: 34.22% | T24: R 428 | V24: E-Batten 32W / Marea | W24: 5 | X24: =950*AC$5 -> R1,016.50 | Y24: R5,082.50 | AA24: R0.00 | AB24: R5,082.50
C25: High Bay Incandescent | D25: 12 | E25: 1 | F25: 500 | G25: 1.10 | H25: 550 | I25: 6,600 | J25: 6 | K25: 1,207.80 | L25: 14,454.00 | M25: 8,000.00 | N25: 2.92 | O25: R 500.00 | Q25: R 450.00 | R25: R 950.00 | S25: 34.22% | T25: R 3,901 | V25: O-Bay 200W | W25: 12 | X25: =1750*AC$5 -> R1,872.50 | Y25: R22,470.00 | AA25: R0.00 | AB25: R22,470.00
C26: Floodlight CFL | D26: 2 | E26: 1 | F26: 85 | G26: 1.10 | H26: 93.5 | I26: 187 | J26: 6 | K26: 34.22 | L26: 409.53 | M26: 10,000.00 | N26: 3.65 | O26: R 300.00 | P26: R 600.00 | Q26: R 150.00 | R26: R 570.00 | S26: 27.38% | T26: R 312 | V26: Larvik 100W Floodlight | W26: 2 | X26: =2550*AC$5 -> R2,728.50 | Y26: R5,457.00 | AA26: R0.00 | AB26: R5,457.00
C27: Floodlight Mercury Vapour | D27: 6 | E27: 1 | F27: 125 | G27: 1.10 | H27: 137.5 | I27: 825 | J27: 6 | K27: 150.98 | L27: 1,806.75 | M27: 10,000.00 | N27: 3.65 | O27: R 300.00 | P27: R 600.00 | Q27: R 150.00 | R27: R 570.00 | S27: 27.38% | T27: R 936 | V27: Larvik 100W Floodlight | W27: 6 | X27: =2550*AC$5 -> R2,728.50 | Y27: R16,371.00 | AA27: R0.00 | AB27: R16,371.00
C28: Floodlight Metal Halide | D28: 49 | E28: 1 | F28: 125 | G28: 1.10 | H28: 137.5 | I28: 6,738 | J28: 6 | K28: 1,232.96 | L28: 14,755.13 | M28: 10,000.00 | N28: 3.65 | O28: R 600.00 | P28: R 1,300.00 | Q28: R 150.00 | R28: R 1,010.00 | S28: 27.38% | T28: R 13,548 | V28: Larvik 100W Floodlight | W28: 49 | X28: =2550*AC$5 -> R2,728.50 | Y28: R133,696.50 | AA28: R0.00 | AB28: R133,696.50
C29: Floodlight Halogen | D29: 9 | E29: 1 | F29: 500 | G29: 1.10 | H29: 550 | I29: 4,950 | J29: 6 | K29: 905.85 | L29: 10,840.50 | M29: 10,000.00 | N29: 3.65 | O29: R 300.00 | P29: 0 | Q29: R 150.00 | R29: R 450.00 | S29: 27.38% | T29: R 1,109 | V29: Larvik 100W Floodlight | W29: 9 | X29: =2550*AC$5 -> R2,728.50 | Y29: R24,556.50 | AA29: R0.00 | AB29: R24,556.50
B30: Grand Total Fixtures | D30: =SUM(D9:D29) -> 636 | I30: =SUM(I10:I29) -> 56,530 | L30: =SUM(L10:L29) -> 123,801 | T30: =SUM(T10:T29) -> R 41,518 | V30: Contingency for Extra Lighting in certain areas | W30: 0 | X30: =1200*AC$5 -> R1,284.00 | Y30: R0.00 | AA30: R0.00 | AB30: R0.00
V31: Contingency for Emergency Fittings | W31: 0 | X31: =1200*AC$5 -> R1,284.00 | Y31: R0.00 | AA31: R0.00 | AB31: R0.00
Y32: =SUM(Y10:Y31) -> R272,261.50 | AA32: =SUM(AA10:AA31) -> R0.00
T33: =T30/D30 -> 65.28 | Y33: Sub Total | AA33: Sub Total | AB33: =SUM(AB10:AB31) -> R272,261.50
B34: Energy Efficient Installation
Y35: Total Excluding Vat | AA35: Total Excluding VAT | AB35: =SUM(AB33) -> R272,261.50
C36: Light Type | D36: Qty | E36: #Lamps | F36: Lamp W | G36: Loss Fact. | H36: Indiv. Load | I36: Total Load | J36: Op. Hours | K36: kWh per month | L36: kWh per Annum | M36: Expected Lifespan to L80 | N36: Avg. Re-lamp in years | O36: Cost of Lamp | Q36: Labour cost of Re-lamp | R36: Combined maintenance cost | S36: Annual Maintenance Factor | T36: Annual Maintenance Costs | Y36: Vat | AA36: VAT 15% | AB36: =AB35*15% -> R40,839.23
C37: Titan Bulkhead 21W | D37: 109 | E37: 1 | F37: 136 | G37: 1.10 | H37: =G37*F37*E37 -> 149.6 | I37: =H37*D37 -> 16306.4 | J37: 6 | K37: =(I37*J37)/1000*30.5 -> 2,984.07 | L37: =(I37*J37)/1000*365 -> 35,711.02 | M37: 50,000.00 | N37: =M37/(J37*365)*0.8 -> 18.26 | O37: 0 | P37: 0 | Q37: 0 | R37: =(O37*E37)+(P37/5)+Q37 -> 0 | S37: =1/N37 -> 5.48% | T37: =D37*R37*S37 -> 0 | Y37: Total Including Vat | AA37: Total Including VAT | AB37: =AB36+AB35 -> R313,100.73
C38: DLV-R 6"17W | D38: 14 | E38: 1 | F38: 6 | G38: 1.10 | H38: =G38*F38*E38 -> 6.6 | I38: 92.4 | J38: 6 | K38: 16.91 | L38: 202.36 | M38: 50,000.00 | N38: 18.26 | O38: 0 | P38: 0 | Q38: 0 | R38: 0 | S38: =1/N38 -> 5.48% | T38: 0
C39: LED Lamp 10W | D39: 36 | E39: 1 | F39: 16 | G39: 1.10 | H39: =G39*F39*E39 -> 17.6 | I39: 633.6 | J39: 6 | K39: 115.95 | L39: 1,387.58 | M39: 50,000.00 | N39: 18.26 | O39: 0 | P39: 0 | Q39: 0 | R39: 0 | S39: 5.48% | T39: 0
C40: DLV GU10 6W Splash | D40: 34 | E40: 1 | F40: 32 | G40: 1.10 | H40: =G40*F40*E40 -> 35.2 | I40: 1196.8 | J40: 6 | K40: 219.01 | L40: 2,620.99 | M40: 50,000.00 | N40: 18.26 | O40: 0 | P40: 0 | Q40: 0 | R40: 0 | S40: 5.48% | T40: 0
C41: DLV-R 8" 49W | D41: 6 | E41: 1 | F41: 30 | G41: 1.10 | H41: 33 | I41: 198 | J41: 6 | K41: 36.23 | L41: 433.62 | M41: 50,000.00 | N41: 18.26 | O41: 0 | P41: 0 | Q41: 0 | R41: 0 | S41: 5.48% | T41: 0
C42: E-Batten 32W / Marea | D42: 352 | E42: 1 | F42: 42 | G42: 1.10 | H42: 46.2 | I42: 16262.4 | J42: 6 | K42: 2,976.02 | L42: 35,614.66 | M42: 50,000.00 | N42: 18.26 | O42: 0 | P42: 0 | Q42: 0 | R42: 0 | S42: 5.48% | T42: 0
C43: EOS 600x600 LED Panel | D43: 7 | E43: 1 | F43: 10 | G43: 1.10 | H43: 11 | I43: 77 | J43: 6 | K43: 14.09 | L43: 168.63 | M43: 50,000.00 | N43: 18.26 | O43: 0 | P43: 0 | Q43: 0 | R43: 0 | S43: 5.48% | T43: 0
C44: O-Bay 200W | D44: 12 | E44: 1 | F44: 100 | G44: 1.10 | H44: 110 | I44: 1320 | J44: 6 | K44: 241.56 | L44: 2,890.80 | M44: 50,000.00 | N44: 18.26 | O44: 0 | P44: 0 | Q44: 0 | R44: 0 | S44: 5.48% | T44: 0
C45: Larvik 100W Floodlight | D45: 66 | I45: 0 | J45: 6 | K45: 0 | L45: 0 | M45: 50,000.00 | N45: 18.26 | O45: 0 | P45: 0 | Q45: 0 | R45: =(O45*E45)+(P45/5)+Q45 -> 0 | S45: 5.48% | T45: 0
D46: 636 | I46: =SUM(I37:I45) -> 36086.6 | L46: =SUM(L37:L45) -> 79,029.65
B47: Totals

Sheet Sibonile School
A1: Audit Report Sheet for Sibonile School for the Blind
A3: Client_Name | B3: Site_ID | C3: Site_Name | D3: Area | E3: Sub Area | F3: Lighting_Technology | G3: Fixture_Type | H3: Mount_Type | I3: Number_Lights_Per_Fixture | J3: Total_Number_of_Fixtures | K3: Number_Of_Faulty_Lights | L3: Lamp_Estimated_Capacity | M3: Light_Fixture_Estimated_Capacity | N3: Light_Measured_Capacity | O3: Estimated_Operating_Hours | P3: Measured_Operating_Hours | Q3: Estimated_Baseline_kWh | R3: Measured_Baseline_kWh | S3: Optimal_Operating_Hours
A4: Sibonile School for the Blind | B4: Garthdale AH | D4: Block A | E4: A2 | F4: Tubular Fluorescent | G4: Open Channel | H4: Surface Mount | I4: 2 | J4: 1 | L4: 80 | M4: =SUM(I4*L4) -> 160 | O4: 6
A5: Sibonile School for the Blind | B5: Garthdale AH | D5: Block A | E5: A2 | F5: Tubular Fluorescent | G5: Open Channel | H5: Suspended | I5: 1 | J5: 2 | L5: 80 | M5: =SUM(I5*L5) -> 80 | O5: 6
A6: Sibonile School for the Blind | B6: Garthdale AH | D6: Block A | E6: A3 | F6: Tubular Fluorescent | G6: Open Channel | H6: Surface Mount | I6: 2 | J6: 1 | L6: 80 | M6: =SUM(I6*L6) -> 160 | O6: 6
A7: Sibonile School for the Blind | B7: Garthdale AH | D7: Block A | E7: A3 | F7: Tubular Fluorescent | G7: Open Channel | H7: Suspended | I7: 1 | J7: 2 | L7: 80 | M7: =SUM(I7*L7) -> 80 | O7: 6
A8: Sibonile School for the Blind | B8: Garthdale AH | D8: Block A | E8: A4 | F8: Tubular Fluorescent | G8: Open Channel | H8: Surface Mount | I8: 2 | J8: 1 | L8: 80 | M8: =SUM(I8*L8) -> 160 | O8: 6
A9: Sibonile School for the Blind | B9: Garthdale AH | D9: Block A | E9: A4 | F9: Tubular Fluorescent | G9: Open Channel | H9: Suspended | I9: 1 | J9: 2 | L9: 80 | M9: =SUM(I9*L9) -> 80 | O9: 6
A10: Sibonile School for the Blind | B10: Garthdale AH | D10: Block A | E10: A5 | F10: Tubular Fluorescent | G10: Open Channel | H10: Suspended | I10: 1 | J10: 2 | L10: 80 | M10: =SUM(I10*L10) -> 80 | O10: 6
A11: Sibonile School for the Blind | B11: Garthdale AH | D11: Block A | E11: A6 | F11: Tubular Fluorescent | G11: Open Channel | H11: Surface Mount | I11: 2 | J11: 1 | L11: 36 | M11: 72 | O11: 6
A12: Sibonile School for the Blind | B12: Garthdale AH | D12: Block A | E12: Foundation Block | F12: Tubular Fluorescent | G12: Open Channel | H12: Surface Mount | I12: 2 | J12: 1 | L12: 36 | M12: 72 | O12: 6
A13: Sibonile School for the Blind | B13: Garthdale AH | D13: Block A | E13: Foundation Block | F13: Compact Fluorescent | G13: Bowl Fitting | H13: Surface Mount | I13: 1 | J13: 2 | L13: 26 | M13: 26 | O13: 6
A14: Sibonile School for the Blind | B14: Garthdale AH | D14: Block A | E14: Passage | F14: Tubular Fluorescent | G14: Open Channel | H14: Surface Mount | I14: 2 | J14: 1 | L14: 36 | M14: =SUM(I14*L14) -> 72 | O14: 6
A15: Sibonile School for the Blind | B15: Garthdale AH | D15: Block A | E15: A8 | F15: Tubular Fluorescent | G15: Open Channel | H15: Surface Mount | I15: 2 | J15: 1 | L15: 80 | M15: =SUM(I15*L15) -> 160 | O15: 6
A16: Sibonile School for the Blind | B16: Garthdale AH | D16: Block A | E16: A8 | F16: Tubular Fluorescent | G16: Open Channel | H16: Suspended | I16: 1 | J16: 2 | L16: 80 | M16: =SUM(I16*L16) -> 80 | O16: 6
A17: Sibonile School for the Blind | B17: Garthdale AH | D17: Block A | E17: A10 | F17: Tubular Fluorescent | G17: Open Channel | H17: Surface Mount | I17: 1 | J17: 1 | L17: 40 | M17: =SUM(I17*L17) -> 40 | O17: 6
A18: Sibonile School for the Blind | B18: Garthdale AH | D18: Block A | E18: A11 | F18: Tubular Fluorescent | G18: Open Channel | H18: Surface Mount | I18: 2 | J18: 1 | L18: 80 | M18: =SUM(I18*L18) -> 160 | O18: 6
A19: Sibonile School for the Blind | B19: Garthdale AH | D19: Block A | E19: A11 | F19: Tubular Fluorescent | G19: Open Channel | H19: Suspended | I19: 1 | J19: 2 | L19: 80 | M19: =SUM(I19*L19) -> 80 | O19: 6
A20: Sibonile School for the Blind | B20: Garthdale AH | D20: Block A | E20: Admin / Computer | F20: Tubular Fluorescent | G20: Open Channel | H20: Surface Mount | I20: 2 | J20: 4 | L20: 36 | M20: =SUM(I20*L20) -> 72 | O20: 6
A21: Sibonile School for the Blind | B21: Garthdale AH | D21: Block A | E21: Admin / Computer | F21: Halogen | G21: Downlight | H21: Recessed | I21: 1 | J21: 15 | L21: 50 | M21: 50 | O21: 6
A22: Sibonile School for the Blind | B22: Garthdale AH | D22: Block A | E22: Ladies Toilet | F22: Tubular Fluorescent | G22: Open Channel | H22: Surface Mount | I22: 1 | J22: 1 | L22: 36 | M22: =SUM(I22*L22) -> 36 | O22: 6
A23: Sibonile School for the Blind | B23: Garthdale AH | D23: Block A | E23: Gents Toilet | F23: Tubular Fluorescent | G23: Open Channel | H23: Surface Mount | I23: 1 | J23: 1 | L23: 36 | M23: =SUM(I23*L23) -> 36 | O23: 6
A24: Sibonile School for the Blind | B24: Garthdale AH | D24: Block A | E24: Kitchen | F24: Tubular Fluorescent | G24: Open Channel | H24: Surface Mount | I24: 2 | J24: 1 | L24: 36 | M24: =SUM(I24*L24) -> 72 | O24: 6
A25: Sibonile School for the Blind | B25: Garthdale AH | D25: Block A | E25: Finance | F25: Tubular Fluorescent | G25: Open Channel | H25: Surface Mount | I25: 1 | J25: 1 | L25: 80 | M25: =SUM(I25*L25) -> 80 | O25: 6
A26: Sibonile School for the Blind | B26: Garthdale AH | D26: Block A | E26: Finance | F26: Tubular Fluorescent | G26: Open Channel | H26: Surface Mount | I26: 2 | J26: 1 | L26: 36 | M26: =SUM(I26*L26) -> 72 | O26: 6
A27: Sibonile School for the Blind | B27: Garthdale AH | D27: Block A | E27: Foyer | F27: Tubular Fluorescent | G27: Open Channel | H27: Surface Mount | I27: 2 | J27: 1 | L27: 36 | M27: =SUM(I27*L27) -> 72 | O27: 6
A28: Sibonile School for the Blind | B28: Garthdale AH | D28: Block A | E28: Foyer | F28: Tubular Fluorescent | G28: Open Channel | H28: Surface Mount | I28: 1 | J28: 2 | L28: 36 | M28: 36 | O28: 6
A29: Sibonile School for the Blind | B29: Garthdale AH | D29: Block A | E29: LTSM Store | F29: Tubular Fluorescent | G29: Open Channel | H29: Surface Mount | I29: 1 | J29: 1 | L29: 80 | M29: 80 | O29: 6
A30: Sibonile School for the Blind | B30: Garthdale AH | D30: Block A | E30: Office | F30: Tubular Fluorescent | G30: Open Channel | H30: Surface Mount | I30: 2 | J30: 1 | L30: 58 | M30: =SUM(I30*L30) -> 116 | O30: 6
A31: Sibonile School for the Blind | B31: Garthdale AH | D31: Block A | E31: Staffroom | F31: Tubular Fluorescent | G31: Open Channel | H31: Surface Mount | I31: 2 | J31: 1 | L31: 58 | M31: =SUM(I31*L31) -> 116 | O31: 6
A32: Sibonile School for the Blind | B32: Garthdale AH | D32: Block A | E32: Staffroom | F32: Tubular Fluorescent | G32: Open Channel | H32: Surface Mount | I32: 2 | J32: 1 | L32: 36 | M32: 72 | O32: 6
A33: Sibonile School for the Blind | B33: Garthdale AH | D33: Block A | E33: Principal's Office | F33: Tubular Fluorescent | G33: Open Channel | H33: Surface Mount | I33: 2 | J33: 1 | L33: 36 | M33: =SUM(I33*L33) -> 72 | O33: 6
A34: Sibonile School for the Blind | B34: Garthdale AH | D34: Block B | E34: Kitchen | F34: Tubular Fluorescent | G34: Open Channel | H34: Surface Mount | I34: 2 | J34: 1 | L34: 36 | M34: =SUM(I34*L34) -> 72 | O34: 6
A35: Sibonile School for the Blind | B35: Garthdale AH | D35: Block B | E35: Foyer | F35: Tubular Fluorescent | G35: Open Channel | H35: Surface Mount | I35: 1 | J35: 2 | L35: 36 | M35: 36 | O35: 6
A36: Sibonile School for the Blind | B36: Garthdale AH | D36: Block B | E36: Foyer | F36: Tubular Fluorescent | G36: Open Channel | H36: Surface Mount | I36: 2 | J36: 3 | L36: 36 | M36: =SUM(I36*L36) -> 72 | O36: 6
A37: Sibonile School for the Blind | B37: Garthdale AH | D37: Block B | E37: B1 | F37: Tubular Fluorescent | G37: Open Channel | H37: Surface Mount | I37: 2 | J37: 4 | L37: 36 | M37: 72 | O37: 6
A38: Sibonile School for the Blind | B38: Garthdale AH | D38: Block B | E38: B2 | F38: Tubular Fluorescent | G38: Open Channel | H38: Surface Mount | I38: 2 | J38: 4 | L38: 36 | M38: 72 | O38: 6
A39: Sibonile School for the Blind | B39: Garthdale AH | D39: Block B | E39: B3 | F39: Tubular Fluorescent | G39: Open Channel | H39: Surface Mount | I39: 2 | J39: 4 | L39: 36 | M39: 72 | O39: 6
A40: Sibonile School for the Blind | B40: Garthdale AH | D40: Block B | E40: B4 | F40: Tubular Fluorescent | G40: Open Channel | H40: Surface Mount | I40: 2 | J40: 4 | L40: 36 | M40: 72 | O40: 6
A41: Sibonile School for the Blind | B41: Garthdale AH | D41: Block B | E41: B5 | F41: Tubular Fluorescent | G41: Open Channel | H41: Surface Mount | I41: 2 | J41: 6 | L41: 36 | M41: 72 | O41: 6
A42: Sibonile School for the Blind | B42: Garthdale AH | D42: Block B | E42: Computer | F42: Tubular Fluorescent | G42: LBR Fitting | H42: Surface Mount | I42: 2 | J42: 7 | L42: 58 | M42: 116 | O42: 6
A43: Sibonile School for the Blind | B43: Garthdale AH | D43: Block AH - Girls Hostel | E43: AH1 | F43: Tubular Fluorescent | G43: Deco Fitting | H43: Surface Mount | I43: 2 | J43: 6 | L43: 36 | M43: 72 | O43: 6
A44: Sibonile School for the Blind | B44: Garthdale AH | D44: Block AH - Girls Hostel | E44: AH2A | F44: Tubular Fluorescent | G44: Open Channel | H44: Surface Mount | I44: 2 | J44: 6 | L44: 36 | M44: 72 | O44: 6
A45: Sibonile School for the Blind | B45: Garthdale AH | D45: Block AH - Girls Hostel | E45: AH2B | F45: Tubular Fluorescent | G45: Open Channel | H45: Surface Mount | I45: 2 | J45: 6 | L45: 36 | M45: 72 | O45: 6
A46: Sibonile School for the Blind | B46: Garthdale AH | D46: Block AH - Girls Hostel | E46: AH3 | F46: Tubular Fluorescent | G46: Open Channel | H46: Surface Mount | I46: 2 | J46: 3 | L46: 36 | M46: 72 | O46: 6
A47: Sibonile School for the Blind | B47: Garthdale AH | D47: Block AH - Girls Hostel | E47: AH4 | F47: Tubular Fluorescent | G47: Open Channel | H47: Surface Mount | I47: 2 | J47: 3 | L47: 36 | M47: 72 | O47: 6
A48: Sibonile School for the Blind | B48: Garthdale AH | D48: Block AH - Girls Hostel | E48: AH5 - Bathroom | F48: Tubular Fluorescent | G48: Deco Fitting | H48: Surface Mount | I48: 2 | J48: 2 | L48: 36 | M48: 72 | O48: 6
A49: Sibonile School for the Blind | B49: Garthdale AH | D49: Block AH - Girls Hostel | E49: AH5 - Bathroom | F49: Halogen | G49: Downlight | H49: Recessed | I49: 1 | J49: 7 | L49: 50 | M49: 50 | O49: 6
A50: Sibonile School for the Blind | B50: Garthdale AH | D50: Block AH - Girls Hostel | E50: AH6 | F50: Tubular Fluorescent | G50: Deco Fitting | H50: Surface Mount | I50: 2 | J50: 9 | L50: 36 | M50: 72 | O50: 6
A51: Sibonile School for the Blind | B51: Garthdale AH | D51: Block AH - Girls Hostel | E51: AH6 Passage | F51: Compact Fluorescent | G51: Bulkhead | H51: Surface Mount | I51: 1 | J51: 3 | L51: 26 | M51: =SUM(I51*L51) -> 26 | O51: 6
A52: Sibonile School for the Blind | B52: Garthdale AH | D52: Block AH - Girls Hostel | E52: AH7 - Not Open | F52: Tubular Fluorescent | G52: Deco Fitting | H52: Surface Mount | I52: 2 | J52: 6 | L52: 36 | M52: 72 | O52: 6
A53: Sibonile School for the Blind | B53: Garthdale AH | D53: Block AH - Girls Hostel | E53: AH8 | F53: Tubular Fluorescent | G53: Deco Fitting | H53: Surface Mount | I53: 2 | J53: 10 | L53: 36 | M53: 72 | O53: 6
A54: Sibonile School for the Blind | B54: Garthdale AH | D54: Block AH - Girls Hostel | E54: AH9 | F54: Tubular Fluorescent | G54: Deco Fitting | H54: Surface Mount | I54: 2 | J54: 7 | L54: 36 | M54: 72 | O54: 6
A55: Sibonile School for the Blind | B55: Garthdale AH | D55: Block AH - Girls Hostel | E55: AH9 | F55: Halogen | G55: Downlight | H55: Recessed | I55: 1 | J55: 2 | L55: 50 | M55: =SUM(I55*L55) -> 50 | O55: 6
A56: Sibonile School for the Blind | B56: Garthdale AH | D56: Block AH - Girls Hostel | E56: AH10 | F56: Tubular Fluorescent | G56: Open Channel | H56: Surface Mount | I56: 2 | J56: 4 | L56: 36 | M56: 72 | O56: 6
A57: Sibonile School for the Blind | B57: Garthdale AH | D57: Block AH - Girls Hostel | E57: AH11 | F57: Tubular Fluorescent | G57: Open Channel | H57: Surface Mount | I57: 2 | J57: 6 | L57: 36 | M57: =SUM(I57*L57) -> 72 | O57: 6
A58: Sibonile School for the Blind | B58: Garthdale AH | D58: Block AH - Girls Hostel | E58: AH12 | F58: Tubular Fluorescent | G58: Open Channel | H58: Surface Mount | I58: 2 | J58: 1 | L58: 36 | M58: 72 | O58: 6
A59: Sibonile School for the Blind | B59: Garthdale AH | D59: Block AH - Girls Hostel | E59: AH13 | F59: Tubular Fluorescent | G59: Open Channel | H59: Surface Mount | I59: 2 | J59: 6 | L59: 36 | M59: 72 | O59: 6
A60: Sibonile School for the Blind | B60: Garthdale AH | D60: Block AH - Girls Hostel | E60: AH14A | F60: Tubular Fluorescent | G60: Open Channel | H60: Surface Mount | I60: 2 | J60: 9 | L60: 36 | M60: 72 | O60: 6
A61: Sibonile School for the Blind | B61: Garthdale AH | D61: Block AH - Girls Hostel | E61: AH14B | F61: Tubular Fluorescent | G61: Open Channel | H61: Surface Mount | I61: 2 | J61: 3 | L61: 36 | M61: 72 | O61: 6
A62: Sibonile School for the Blind | B62: Garthdale AH | D62: Block AH - Girls Hostel | E62: AH15 | F62: Tubular Fluorescent | G62: Deco Fitting | H62: Surface Mount | I62: 2 | J62: 2 | L62: 36 | M62: 72 | O62: 6
A63: Sibonile School for the Blind | B63: Garthdale AH | D63: Block AH - Girls Hostel | E63: AH15 | F63: Halogen | G63: Downlight | H63: Recessed | I63: 1 | J63: 10 | L63: 50 | M63: 50 | O63: 6
A64: Sibonile School for the Blind | B64: Garthdale AH | D64: Block AH - Girls Hostel | E64: AH16 | F64: Tubular Fluorescent | G64: Open Channel | H64: Surface Mount | I64: 2 | J64: 4 | L64: 36 | M64: =SUM(I64*L64) -> 72 | O64: 6
A65: Sibonile School for the Blind | B65: Garthdale AH | D65: Block AH - Girls Hostel | E65: AH17A | F65: Tubular Fluorescent | G65: Open Channel | H65: Surface Mount | I65: 2 | J65: 6 | L65: 36 | M65: =SUM(I65*L65) -> 72 | O65: 6
A66: Sibonile School for the Blind | B66: Garthdale AH | D66: Block AH - Girls Hostel | E66: AH17B | F66: Tubular Fluorescent | G66: Open Channel | H66: Surface Mount | I66: 2 | J66: 5 | L66: 36 | M66: =SUM(I66*L66) -> 72 | O66: 6
A67: Sibonile School for the Blind | B67: Garthdale AH | D67: Block AH - Girls Hostel | E67: AH Passage | F67: Tubular Fluorescent | G67: Deco Fitting | H67: Surface Mount | I67: 2 | J67: 14 | L67: 36 | M67: 72 | O67: 6
A68: Sibonile School for the Blind | B68: Garthdale AH | D68: Block AH - Girls Hostel | E68: AH Outside Passage | F68: Tubular Fluorescent | G68: Deco Fitting | H68: Surface Mount | I68: 2 | J68: 1 | L68: 36 | M68: 72 | O68: 6
A69: Sibonile School for the Blind | B69: Garthdale AH | D69: Block GH - Boys Hostel | E69: GH Foyer | F69: Tubular Fluorescent - LED | G69: Open Channel | H69: Surface Mount | I69: 2 | J69: 3 | L69: 20 | M69: 40 | O69: 6
A70: Sibonile School for the Blind | B70: Garthdale AH | D70: Block GH - Boys Hostel | E70: GH18 - Toilets | F70: Tubular Fluorescent | G70: Open Channel | H70: Surface Mount | I70: 2 | J70: 2 | L70: 36 | M70: =SUM(I70*L70) -> 72 | O70: 6
A71: Sibonile School for the Blind | B71: Garthdale AH | D71: Block GH - Boys Hostel | E71: GH18 - Toilets | F71: Tubular Fluorescent | G71: Open Channel | H71: Surface Mount | I71: 1 | J71: 1 | L71: 36 | M71: 36 | O71: 6
A72: Sibonile School for the Blind | B72: Garthdale AH | D72: Block GH - Boys Hostel | E72: GH19 - Toilets | F72: Tubular Fluorescent | G72: Open Channel | H72: Surface Mount | I72: 2 | J72: 2 | L72: 36 | M72: =SUM(I72*L72) -> 72 | O72: 6
A73: Sibonile School for the Blind | B73: Garthdale AH | D73: Block GH - Boys Hostel | E73: GH19 - Toilets | F73: Tubular Fluorescent | G73: Open Channel | H73: Surface Mount | I73: 1 | J73: 1 | L73: 36 | M73: 36 | O73: 6
A74: Sibonile School for the Blind | B74: Garthdale AH | D74: Block GH - Boys Hostel | E74: GH17 | F74: Tubular Fluorescent | G74: Open Channel | H74: Surface Mount | I74: 2 | J74: 1 | L74: 36 | M74: 72 | O74: 6
A75: Sibonile School for the Blind | B75: Garthdale AH | D75: Block GH - Boys Hostel | E75: GH17 | F75: Tubular Fluorescent | G75: Open Channel | H75: Surface Mount | I75: 1 | J75: 1 | L75: 80 | M75: 80 | O75: 6
A76: Sibonile School for the Blind | B76: Garthdale AH | D76: Block GH - Boys Hostel | E76: GH17 | F76: Tubular Fluorescent | G76: Open Channel | H76: Surface Mount | I76: 1 | J76: 1 | L76: 58 | M76: 58 | O76: 6
A77: Sibonile School for the Blind | B77: Garthdale AH | D77: Block GH - Boys Hostel | E77: Passage | F77: Tubular Fluorescent | G77: Open Channel | H77: Surface Mount | I77: 2 | J77: 2 | L77: 36 | M77: 72 | O77: 6
A78: Sibonile School for the Blind | B78: Garthdale AH | D78: Block GH - Boys Hostel | E78: Passage | F78: Tubular Fluorescent - LED | G78: Open Channel | H78: Surface Mount | I78: 2 | J78: 2 | L78: 20 | M78: 40 | O78: 6
A79: Sibonile School for the Blind | B79: Garthdale AH | D79: Block GH - Boys Hostel | E79: Passage | F79: Compact Fluorescent | G79: Bulkhead | H79: Surface Mount | I79: 1 | J79: 2 | L79: 26 | M79: 26 | O79: 6
A80: Sibonile School for the Blind | B80: Garthdale AH | D80: Block GH - Boys Hostel | E80: Dressing Room | F80: Tubular Fluorescent | G80: Open Channel | H80: Surface Mount | I80: 2 | J80: 1 | L80: 36 | M80: 72 | O80: 6
A81: Sibonile School for the Blind | B81: Garthdale AH | D81: Block GH - Boys Hostel | E81: TV Room | F81: Tubular Fluorescent | G81: Open Channel | H81: Surface Mount | I81: 2 | J81: 1 | L81: 36 | M81: 72 | O81: 6
A82: Sibonile School for the Blind | B82: Garthdale AH | D82: Block GH - Boys Hostel | E82: Boys Room1 | F82: Tubular Fluorescent | G82: Open Channel | H82: Surface Mount | I82: 2 | J82: 1 | L82: 36 | M82: 72 | O82: 6
A83: Sibonile School for the Blind | B83: Garthdale AH | D83: Block GH - Boys Hostel | E83: Boys Room1 | F83: Tubular Fluorescent | G83: Open Channel | H83: Surface Mount | I83: 1 | J83: 1 | L83: 36 | M83: 36 | O83: 6
A84: Sibonile School for the Blind | B84: Garthdale AH | D84: Block GH - Boys Hostel | E84: Boys Room2 | F84: Tubular Fluorescent | G84: Open Channel | H84: Surface Mount | I84: 1 | J84: 2 | L84: 36 | M84: 36 | O84: 6
A85: Sibonile School for the Blind | B85: Garthdale AH | D85: Block GH - Boys Hostel | E85: GH24 | F85: Tubular Fluorescent | G85: Open Channel | H85: Surface Mount | I85: 2 | J85: 2 | L85: 36 | M85: 72 | O85: 6
A86: Sibonile School for the Blind | B86: Garthdale AH | D86: Block GH - Boys Hostel | E86: GH23 | F86: Tubular Fluorescent | G86: Open Channel | H86: Surface Mount | I86: 2 | J86: 2 | L86: 36 | M86: 72 | O86: 6
A87: Sibonile School for the Blind | B87: Garthdale AH | D87: Block GH - Boys Hostel | E87: GH22 | F87: Tubular Fluorescent | G87: Open Channel | H87: Surface Mount | I87: 2 | J87: 2 | L87: 36 | M87: 72 | O87: 6
A88: Sibonile School for the Blind | B88: Garthdale AH | D88: Block GH - Boys Hostel | E88: GH21 | F88: Tubular Fluorescent | G88: Open Channel | H88: Surface Mount | I88: 2 | J88: 4 | L88: 36 | M88: 72 | O88: 6
A89: Sibonile School for the Blind | B89: Garthdale AH | D89: Block GH - Boys Hostel | E89: GH20 | F89: Tubular Fluorescent | G89: Open Channel | H89: Surface Mount | I89: 2 | J89: 4 | L89: 36 | M89: 72 | O89: 6
A90: Sibonile School for the Blind | B90: Garthdale AH | D90: Block GH - Boys Hostel | E90: Passage | F90: Tubular Fluorescent | G90: Open Channel | H90: Surface Mount | I90: 1 | J90: 1 | L90: 58 | M90: 58 | O90: 6
A91: Sibonile School for the Blind | B91: Garthdale AH | D91: Block GH - Boys Hostel | E91: Passage | F91: Tubular Fluorescent | G91: Open Channel | H91: Surface Mount | I91: 2 | J91: 5 | L91: 36 | M91: 72 | O91: 6
A92: Sibonile School for the Blind | B92: Garthdale AH | D92: Block GH - Boys Hostel | E92: Passage | F92: Compact Fluorescent | G92: Bulkhead | H92: Surface Mount | I92: 1 | J92: 2 | L92: 26 | M92: =SUM(I92*L92) -> 26 | O92: 6
A93: Sibonile School for the Blind | B93: Garthdale AH | D93: Block GH - Boys Hostel | E93: Kitchen | F93: Tubular Fluorescent | G93: Open Channel | H93: Surface Mount | I93: 2 | J93: 6 | L93: 36 | M93: 72 | O93: 6
A94: Sibonile School for the Blind | B94: Garthdale AH | D94: Block GH - Boys Hostel | E94: Kitchen | F94: Compact Fluorescent | G94: Bowl Fitting | H94: Surface Mount | I94: 1 | J94: 1 | L94: 26 | M94: 26 | O94: 6
A95: Sibonile School for the Blind | B95: Garthdale AH | D95: Block GH - Boys Hostel | E95: GH15 | F95: Tubular Fluorescent | G95: Open Channel | H95: Surface Mount | I95: 1 | J95: 1 | L95: 58 | M95: 58 | O95: 6
A96: Sibonile School for the Blind | B96: Garthdale AH | D96: Block GH - Boys Hostel | E96: GH15 | F96: Compact Fluorescent | G96: Bowl Fitting | H96: Surface Mount | I96: 1 | J96: 1 | L96: 26 | M96: 26 | O96: 6
A97: Sibonile School for the Blind | B97: Garthdale AH | D97: Block GH - Boys Hostel | E97: GH14 | F97: Tubular Fluorescent | G97: Open Channel | H97: Surface Mount | I97: 1 | J97: 1 | L97: 36 | M97: 36 | O97: 6
A98: Sibonile School for the Blind | B98: Garthdale AH | D98: Block GH - Boys Hostel | E98: GH14 | F98: Compact Fluorescent | G98: Bulkhead | H98: Surface Mount | I98: 1 | J98: 2 | L98: 26 | M98: 26 | O98: 6
A99: Sibonile School for the Blind | B99: Garthdale AH | D99: Block GH - Boys Hostel | E99: GH13 | F99: Tubular Fluorescent | G99: Open Channel | H99: Surface Mount | I99: 2 | J99: 2 | L99: 36 | M99: 72 | O99: 6
A100: Sibonile School for the Blind | B100: Garthdale AH | D100: Block GH - Boys Hostel | E100: GH12 | F100: Tubular Fluorescent | G100: Open Channel | H100: Surface Mount | I100: 2 | J100: 2 | L100: 36 | M100: 72 | O100: 6
A101: Sibonile School for the Blind | B101: Garthdale AH | D101: Block GH - Boys Hostel | E101: GH11 | F101: Tubular Fluorescent | G101: Open Channel | H101: Surface Mount | I101: 2 | J101: 2 | L101: 36 | M101: 72 | O101: 6
A102: Sibonile School for the Blind | B102: Garthdale AH | D102: Block GH - Boys Hostel | E102: GH7 | F102: Tubular Fluorescent | G102: Open Channel | H102: Surface Mount | I102: 2 | J102: 2 | L102: 36 | M102: 72 | O102: 6
A103: Sibonile School for the Blind | B103: Garthdale AH | D103: Block GH - Boys Hostel | E103: GH6 | F103: Tubular Fluorescent | G103: Open Channel | H103: Surface Mount | I103: 2 | J103: 2 | L103: 36 | M103: 72 | O103: 6
A104: Sibonile School for the Blind | B104: Garthdale AH | D104: Block GH - Boys Hostel | E104: GH5 | F104: Tubular Fluorescent | G104: Open Channel | H104: Surface Mount | I104: 2 | J104: 2 | L104: 36 | M104: 72 | O104: 6
A105: Sibonile School for the Blind | B105: Garthdale AH | D105: Block GH - Boys Hostel | E105: GH4 | F105: Tubular Fluorescent | G105: Open Channel | H105: Surface Mount | I105: 2 | J105: 4 | L105: 36 | M105: 72 | O105: 6
A106: Sibonile School for the Blind | B106: Garthdale AH | D106: Block GH - Boys Hostel | E106: GH3 | F106: Tubular Fluorescent | G106: Open Channel | H106: Surface Mount | I106: 2 | J106: 4 | L106: 36 | M106: 72 | O106: 6
A107: Sibonile School for the Blind | B107: Garthdale AH | D107: Block GH - Boys Hostel | E107: GH2 | F107: Tubular Fluorescent | G107: Open Channel | H107: Surface Mount | I107: 2 | J107: 4 | L107: 36 | M107: 72 | O107: 6
A108: Sibonile School for the Blind | B108: Garthdale AH | D108: Block GH - Boys Hostel | E108: GH1 | F108: Tubular Fluorescent | G108: Open Channel | H108: Surface Mount | I108: 2 | J108: 3 | L108: 36 | M108: 72 | O108: 6
A109: Sibonile School for the Blind | B109: Garthdale AH | D109: Dining Hall | E109: Ladies Toilet | F109: Tubular Fluorescent | G109: Open Channel | H109: Surface Mount | I109: 2 | J109: 2 | L109: 36 | M109: 72 | O109: 6
A110: Sibonile School for the Blind | B110: Garthdale AH | D110: Dining Hall | E110: Ladies Toilet | F110: Compact Fluorescent | G110: Downlight | H110: Recessed | I110: 2 | J110: 1 | L110: 18 | M110: 36 | O110: 6
A111: Sibonile School for the Blind | B111: Garthdale AH | D111: Dining Hall | E111: Gents Toilet | F111: Tubular Fluorescent | G111: Open Channel | H111: Surface Mount | I111: 2 | J111: 2 | L111: 36 | M111: =SUM(I111*L111) -> 72 | O111: 6
A112: Sibonile School for the Blind | B112: Garthdale AH | D112: Dining Hall | E112: Gents Toilet | F112: Compact Fluorescent | G112: Downlight | H112: Recessed | I112: 2 | J112: 1 | L112: 18 | M112: 36 | O112: 6
A113: Sibonile School for the Blind | B113: Garthdale AH | D113: Dining Hall | E113: Paraplegic Toilet | F113: Compact Fluorescent | G113: Downlight | H113: Recessed | I113: 2 | J113: 1 | L113: 18 | M113: =SUM(I113*L113) -> 36 | O113: 6
A114: Sibonile School for the Blind | B114: Garthdale AH | D114: Dining Hall | E114: Foyer | F114: Compact Fluorescent | G114: Downlight | H114: Recessed | I114: 2 | J114: 3 | L114: 18 | M114: =SUM(I114*L114) -> 36 | O114: 6
A115: Sibonile School for the Blind | B115: Garthdale AH | D115: Dining Hall | E115: Passage | F115: Compact Fluorescent | G115: Bulkhead | H115: Surface Mount | I115: 2 | J115: 10 | L115: 26 | M115: 52 | O115: 6
A116: Sibonile School for the Blind | B116: Garthdale AH | D116: Dining Hall | E116: Dining Hall 1 | F116: Compact Fluorescent | G116: Pendant | H116: Suspended | I116: 1 | J116: 12 | L116: 20 | M116: 20 | O116: 6
A117: Sibonile School for the Blind | B117: Garthdale AH | D117: Dining Hall | E117: Dining Hall 2 | F117: Compact Fluorescent | G117: Pendant | H117: Suspended | I117: 1 | J117: 12 | L117: 20 | M117: 20 | O117: 6
A118: Sibonile School for the Blind | B118: Garthdale AH | D118: Dining Hall | E118: Dining Hall 3 | F118: Compact Fluorescent | G118: Pendant | H118: Suspended | I118: 1 | J118: 12 | L118: 20 | M118: 20 | O118: 6
A119: Sibonile School for the Blind | B119: Garthdale AH | D119: Dining Hall | E119: Tuckshop | F119: Compact Fluorescent | G119: Downlight | H119: Recessed | I119: 2 | J119: 8 | L119: 18 | M119: 36 | O119: 6
A120: Sibonile School for the Blind | B120: Garthdale AH | D120: Dining Hall | E120: Cleaning Store | F120: Compact Fluorescent | G120: Bulkhead | H120: Surface Mount | I120: 2 | J120: 1 | L120: 26 | M120: =SUM(I120*L120) -> 52 | O120: 6
A121: Sibonile School for the Blind | B121: Garthdale AH | D121: Dining Hall | E121: Store 1 | F121: Compact Fluorescent | G121: Bulkhead | H121: Surface Mount | I121: 2 | J121: 1 | L121: 26 | M121: =SUM(I121*L121) -> 52 | O121: 6
A122: Sibonile School for the Blind | B122: Garthdale AH | D122: Dining Hall | E122: Store 2 | F122: Compact Fluorescent | G122: Bulkhead | H122: Surface Mount | I122: 2 | J122: 1 | L122: 26 | M122: 52 | O122: 6
A123: Sibonile School for the Blind | B123: Garthdale AH | D123: Dining Hall | E123: Store 3 | F123: Compact Fluorescent | G123: Bulkhead | H123: Surface Mount | I123: 2 | J123: 1 | L123: 26 | M123: 52 | O123: 6
A124: Sibonile School for the Blind | B124: Garthdale AH | D124: Dining Hall | E124: Changing Room | F124: Compact Fluorescent | G124: Bulkhead | H124: Surface Mount | I124: 2 | J124: 4 | L124: 26 | M124: 52 | O124: 6
A125: Sibonile School for the Blind | B125: Garthdale AH | D125: Dining Hall | E125: Kitchen | F125: Tubular Fluorescent | G125: Open Channel | H125: Surface Mount | I125: 2 | J125: 5 | L125: 36 | M125: 72 | O125: 6
A126: Sibonile School for the Blind | B126: Garthdale AH | D126: Dining Hall | E126: Kitchen | F126: Tubular Fluorescent | G126: Open Channel | H126: Surface Mount | I126: 1 | J126: 11 | L126: 36 | M126: 36 | O126: 6
A127: Sibonile School for the Blind | B127: Garthdale AH | D127: Dining Hall | E127: Kitchen | F127: Tubular Fluorescent | G127: Open Channel | H127: Surface Mount | I127: 2 | J127: 5 | L127: 58 | M127: 116 | O127: 6
A128: Sibonile School for the Blind | B128: Garthdale AH | D128: Dining Hall | E128: Kitchen | F128: Tubular Fluorescent | G128: Open Channel | H128: Surface Mount | I128: 1 | J128: 1 | L128: 58 | M128: 58 | O128: 6
A129: Sibonile School for the Blind | B129: Garthdale AH | D129: Dining Hall | E129: Kitchen | F129: Tubular Fluorescent - LED | G129: Open Channel | H129: Surface Mount | I129: 1 | J129: 1 | L129: 20 | M129: 20 | O129: 6
A130: Sibonile School for the Blind | B130: Garthdale AH | D130: Block C | E130: C1 | F130: Tubular Fluorescent | G130: Open Channel | H130: Surface Mount | I130: 2 | J130: 2 | L130: 36 | M130: 72 | O130: 6
A131: Sibonile School for the Blind | B131: Garthdale AH | D131: Block C | E131: C2 | F131: Tubular Fluorescent | G131: Open Channel | H131: Surface Mount | I131: 2 | J131: 2 | L131: 36 | M131: 72 | O131: 6
A132: Sibonile School for the Blind | B132: Garthdale AH | D132: Block C | E132: C3 | F132: Tubular Fluorescent | G132: Deco Fitting | H132: Surface Mount | I132: 2 | J132: 3 | L132: 36 | M132: 72 | O132: 6
A133: Sibonile School for the Blind | B133: Garthdale AH | D133: Block D | E133: D1 | F133: Tubular Fluorescent | G133: Deco Fitting | H133: Surface Mount | I133: 2 | J133: 2 | L133: 36 | M133: 72 | O133: 6
A134: Sibonile School for the Blind | B134: Garthdale AH | D134: Block D | E134: D2 | F134: Tubular Fluorescent | G134: Deco Fitting | H134: Surface Mount | I134: 2 | J134: 2 | L134: 36 | M134: 72 | O134: 6
A135: Sibonile School for the Blind | B135: Garthdale AH | D135: Block D | E135: D3 | F135: Tubular Fluorescent | G135: Open Channel | H135: Surface Mount | I135: 2 | J135: 4 | L135: 58 | M135: 116 | O135: 6
A136: Sibonile School for the Blind | B136: Garthdale AH | D136: Block E | E136: E1 | F136: Tubular Fluorescent | G136: Open Channel | H136: Surface Mount | I136: 2 | J136: 4 | L136: 36 | M136: 72 | O136: 6
A137: Sibonile School for the Blind | B137: Garthdale AH | D137: Block E | E137: E2 | F137: Tubular Fluorescent | G137: Open Channel | H137: Surface Mount | I137: 2 | J137: 4 | L137: 36 | M137: 72 | O137: 6
A138: Sibonile School for the Blind | B138: Garthdale AH | D138: Block E | E138: E3 | F138: Tubular Fluorescent | G138: Open Channel | H138: Surface Mount | I138: 1 | J138: 6 | L138: 36 | M138: 36 | O138: 6
A139: Sibonile School for the Blind | B139: Garthdale AH | D139: Block E | E139: E4 | F139: Tubular Fluorescent | G139: Open Channel | H139: Surface Mount | I139: 1 | J139: 6 | L139: 36 | M139: 36 | O139: 6
A140: Sibonile School for the Blind | B140: Garthdale AH | D140: Therapy House | E140: All | F140: Compact Fluorescent | G140: Bowl Fitting | H140: Surface Mount | I140: 1 | J140: 14 | L140: 26 | M140: 26 | O140: 6
A141: Sibonile School for the Blind | B141: Garthdale AH | D141: Block F - Hall | E141: Entrance | F141: Tubular Fluorescent | G141: Open Channel | H141: Surface Mount | I141: 2 | J141: 1 | L141: 36 | M141: 72 | O141: 6
A142: Sibonile School for the Blind | B142: Garthdale AH | D142: Block F - Hall | E142: Foyer | F142: Compact Fluorescent | G142: Bowl Fitting | H142: Surface Mount | I142: 1 | J142: 4 | L142: 26 | M142: =SUM(I142*L142) -> 26 | O142: 6
A143: Sibonile School for the Blind | B143: Garthdale AH | D143: Block F - Hall | E143: Ladies Toilet | F143: Compact Fluorescent | G143: Bowl Fitting | H143: Surface Mount | I143: 1 | J143: 1 | L143: 26 | M143: 26 | O143: 6
A144: Sibonile School for the Blind | B144: Garthdale AH | D144: Block F - Hall | E144: Gents Toilet | F144: Tubular Fluorescent | G144: Open Channel | H144: Surface Mount | I144: 1 | J144: 1 | L144: 40 | M144: 40 | O144: 6
A145: Sibonile School for the Blind | B145: Garthdale AH | D145: Block F - Hall | E145: F2 | F145: Tubular Fluorescent | G145: Open Channel | H145: Surface Mount | I145: 1 | J145: 1 | L145: 58 | M145: 58 | O145: 6
A146: Sibonile School for the Blind | B146: Garthdale AH | D146: Block F - Hall | E146: Admin Brain | F146: Tubular Fluorescent | G146: Open Channel | H146: Surface Mount | I146: 2 | J146: 1 | L146: 36 | M146: 72 | O146: 6
A147: Sibonile School for the Blind | B147: Garthdale AH | D147: Block F - Hall | E147: Passage Upstairs | F147: Compact Fluorescent | G147: Bulkhead | H147: Surface Mount | I147: 1 | J147: 2 | L147: 26 | M147: 26 | O147: 6
A148: Sibonile School for the Blind | B148: Garthdale AH | D148: Block F - Hall | E148: Stores Upstairs | F148: Tubular Fluorescent | G148: Open Channel | H148: Surface Mount | I148: 2 | J148: 3 | L148: 36 | M148: 72 | O148: 6
A149: Sibonile School for the Blind | B149: Garthdale AH | D149: Block F - Hall | E149: Stores Downstairs | F149: Tubular Fluorescent | G149: Open Channel | H149: Surface Mount | I149: 2 | J149: 1 | L149: 36 | M149: 72 | O149: 6
A150: Sibonile School for the Blind | B150: Garthdale AH | D150: Block F - Hall | E150: Kitchen | F150: Tubular Fluorescent | G150: Deco Fitting | H150: Surface Mount | I150: 2 | J150: 1 | L150: 40 | M150: 80 | O150: 6
A151: Sibonile School for the Blind | B151: Garthdale AH | D151: Block F - Hall | E151: Hall | F151: Tubular Fluorescent | G151: Open Channel | H151: Surface Mount | I151: 2 | J151: 5 | L151: 36 | M151: 72 | O151: 6
A152: Sibonile School for the Blind | B152: Garthdale AH | D152: Block F - Hall | E152: Hall | F152: Tubular Fluorescent | G152: Open Channel | H152: Surface Mount | I152: 2 | J152: 2 | L152: 58 | M152: 116 | O152: 6
A153: Sibonile School for the Blind | B153: Garthdale AH | D153: Block F - Hall | E153: Hall | F153: Incandescent | G153: High Bay | H153: Recessed | I153: 1 | J153: 12 | L153: 500 | M153: 500 | O153: 6
A154: Sibonile School for the Blind | B154: Garthdale AH | D154: Block F - Hall | E154: Hall | F154: Reflector Lamps | G154: Downlight | H154: Recessed | I154: 1 | J154: 6 | L154: 250 | M154: 250 | O154: 6
A155: Sibonile School for the Blind | B155: Garthdale AH | D155: Block F - Hall | E155: Behind Stage | F155: Tubular Fluorescent | G155: Open Channel | H155: Surface Mount | I155: 2 | J155: 2 | L155: 36 | M155: 72 | O155: 6
A156: Sibonile School for the Blind | B156: Garthdale AH | D156: Block F - Hall | E156: Behind Stage | F156: Compact Fluorescent | G156: Bowl Fitting | H156: Surface Mount | I156: 1 | J156: 1 | L156: 26 | M156: 26 | O156: 6
A157: Sibonile School for the Blind | B157: Garthdale AH | D157: Block F - Hall | E157: Under Stage | F157: Compact Fluorescent | G157: Bowl Fitting | H157: Surface Mount | I157: 1 | J157: 6 | L157: 26 | M157: 26 | O157: 6
A158: Sibonile School for the Blind | B158: Garthdale AH | D158: Outside | E158: All | F158: Metal Halide | G158: Floodlight | H158: Wall Mount | I158: 1 | J158: 17 | L158: 400 | M158: =SUM(I158*L158) -> 400 | O158: 6
A159: Sibonile School for the Blind | B159: Garthdale AH | D159: Outside | E159: All | F159: Mercury Vapour | G159: Floodlight | H159: Wall Mount | I159: 1 | J159: 6 | L159: 125 | M159: =SUM(I159*L159) -> 125 | O159: 6
A160: Sibonile School for the Blind | B160: Garthdale AH | D160: Outside | E160: All | F160: Compact Fluorescent | G160: Floodlight | H160: Wall Mount | I160: 1 | J160: 2 | L160: 85 | M160: 85 | O160: 6
A161: Sibonile School for the Blind | B161: Garthdale AH | D161: Outside | E161: All | F161: Halogen | G161: Floodlight | H161: Wall Mount | I161: 1 | J161: 9 | L161: 500 | M161: =SUM(I161*L161) -> 500 | O161: 6
A162: Sibonile School for the Blind | B162: Garthdale AH | D162: Outside | E162: All | F162: Compact Fluorescent | G162: Bulkhead | H162: Wall Mount | I162: 1 | J162: 27 | L162: 26 | M162: 26 | O162: 6
A163: Sibonile School for the Blind | B163: Garthdale AH | D163: Outside | E163: All | F163: Compact Fluorescent | G163: Bulkhead | H163: Wall Mount | I163: 2 | J163: 21 | L163: 26 | M163: =SUM(I163*L163) -> 52 | O163: 6
A164: Sibonile School for the Blind | B164: Garthdale AH | D164: Outside | E164: All | F164: Compact Fluorescent | G164: Bowl Fitting | H164: Wall Mount | I164: 1 | J164: 2 | L164: 26 | M164: =SUM(I164*L164) -> 26 | O164: 6
A165: Sibonile School for the Blind | B165: Garthdale AH | D165: Outside | E165: All | F165: Tubular Fluorescent | G165: Open Channel | H165: Surface Mount | I165: 1 | J165: 1 | L165: 36 | M165: 36 | O165: 6
A166: Sibonile School for the Blind | B166: Garthdale AH | D166: Outside | E166: All | F166: Tubular Fluorescent | G166: Open Channel | H166: Surface Mount | I166: 2 | J166: 4 | L166: 36 | M166: 72 | O166: 6
A167: Sibonile School for the Blind | B167: Garthdale AH | D167: Outside | E167: Garage | F167: Tubular Fluorescent | G167: Open Channel | H167: Surface Mount | I167: 2 | J167: 1 | L167: 36 | M167: 72 | O167: 6
A168: Sibonile School for the Blind | B168: Garthdale AH | D168: Outside | E168: Garage | F168: Tubular Fluorescent | G168: Open Channel | H168: Surface Mount | I168: 2 | J168: 1 | L168: 58 | M168: 116 | O168: 6
A169: Sibonile School for the Blind | B169: Garthdale AH | D169: Outside | E169: Tuckshop | F169: Tubular Fluorescent | G169: Open Channel | H169: Surface Mount | I169: 1 | J169: 3 | L169: 40 | M169: 40 | O169: 6
A170: Sibonile School for the Blind | B170: Garthdale AH | D170: Outside | E170: All | F170: Metal Halide | G170: Floodlight | H170: Wall Mount | I170: 1 | J170: 16 | L170: 400 | M170: 400 | O170: 6
A171: Sibonile School for the Blind | B171: Garthdale AH | D171: Outside | E171: All | F171: Metal Halide | G171: Floodlight | H171: Wall Mount | I171: 1 | J171: 16 | L171: 400 | M171: 400 | O171: 6

Sheet Study Data
B1: Audit Report Sheet for Sibonile School for the Blind | V1: Audit Report Sheet for Sibonile School for the Blind
B4: Survey information | C4: Date: | D4: Site:
C5: 2021-09-26 | D5: Sibonile School for the Blind | AC5: 1.07
B6: Current Installation | V6: QUOTATION
C8: Light Type | D8: Qty | E8: #Lamps | F8: Lamp W | G8: Loss Fact. | H8: Indiv. Load | I8: Total Load | J8: Ops. Hrs. | K8: kWh per month | L8: kWh per Annum | M8: Lamp Lifespan | N8: Avg. Group Re-lamp in years | O8: Cost of Lamp* | P8: Cost of Ballast | Q8: Labour cost of Re-lamp* | R8: Combined maintenance cost | S8: Annual Maintenance Factor | T8: Annual Maintenance Costs | V8: Luminaire Description | W8: Qty | X8: Fixture Unit Price | Y8: Fixture Unit Price Total | Z8: Installation Unit Price | AA8: Installation Unit Price Total | AB8: Total
V9: =B9 -> 0
C10: Bulkhead / Bowl Fitting (1 Lamp) | D10: 70 | E10: 1 | F10: 26 | G10: 1.10 | H10: =G10*F10*E10 -> 28.6 | I10: =H10*D10 -> 2,002 | J10: 6 | K10: =(I10*J10)/1000*30.5 -> 366.37 | L10: =(I10*J10)/1000*365 -> 4,384.38 | M10: 10,000.00 | N10: =M10/(J10*365)*0.8 -> 3.65 | O10: R 55.00 | P10: 0 | Q10: R 50.00 | R10: =(O10*E10)+(P10/5)+Q10 -> R 105.00 | S10: =1/N10 -> 27.38% | T10: =D10*R10*S10 -> R 2,012 | V10: Titan Bulkhead 21W | W10: =D10 -> 70 | X10: =740*AC$5 -> R791.80 | Y10: =X10*W10 -> R55,426.00 | AA10: =SUM(W10*Z10) -> R0.00 | AB10: =SUM(Y10,AA10) -> R55,426.00
C11: Bulkhead / Bowl Fitting (2 Lamp) | D11: 39 | E11: 2 | F11: 26 | G11: 1.10 | H11: =G11*F11*E11 -> 57.2 | I11: 2,231 | J11: 6 | K11: =(I11*J11)/1000*30.5 -> 408.24 | L11: =(I11*J11)/1000*365 -> 4,885.45 | M11: 10,000.00 | N11: =M11/(J11*365)*0.8 -> 3.65 | O11: R 55.00 | P11: 0 | Q11: R 50.00 | R11: =(O11*E11)+(P11/5)+Q11 -> R 160.00 | S11: =1/N11 -> 27.38% | T11: R 1,708 | V11: Titan Bulkhead 21W | W11: 39 | X11: =740*AC$5 -> R791.80 | Y11: =X11*W11 -> R30,880.20 | AA11: =SUM(W11*Z11) -> R0.00 | AB11: =SUM(Y11,AA11) -> R30,880.20
C12: Downlight CFL | D12: 14 | E12: 2 | F12: 18 | G12: 1.10 | H12: =G12*F12*E12 -> 39.6 | I12: 554 | J12: 6 | K12: =(I12*J12)/1000*30.5 -> 101.46 | L12: =(I12*J12)/1000*365 -> 1,214.14 | M12: 10,000.00 | N12: =M12/(J12*365)*0.8 -> 3.65 | O12: R 55.00 | P12: R 229.00 | Q12: R 50.00 | R12: =(O12*E12)+(P12/5)+Q12 -> R 205.80 | S12: =1/N12 -> 27.38% | T12: R 789 | V12: DLV-R 6" 17W | W12: 14 | X12: =930*AC$5 -> R995.10 | Y12: =X12*W12 -> R13,931.40 | AA12: =SUM(W12*Z12) -> R0.00 | AB12: =SUM(Y12,AA12) -> R13,931.40
C13: Lamps | D13: 36 | E13: 1 | F13: 20 | G13: 1.10 | H13: =G13*F13*E13 -> 22 | I13: 792 | J13: 6 | K13: =(I13*J13)/1000*30.5 -> 144.94 | L13: =(I13*J13)/1000*365 -> 1,734.48 | M13: 10,000.00 | N13: =M13/(J13*365)*0.8 -> 3.65 | O13: R 85.00 | P13: 0 | Q13: R 50.00 | R13: =(O13*E13)+(P13/5)+Q13 -> R 135.00 | S13: =1/N13 -> 27.38% | T13: R 1,330 | V13: LED Lamp 10W | W13: 36 | X13: =150*AC$5 -> R160.50 | Y13: R5,778.00 | AA13: R0.00 | AB13: R5,778.00
C14: Downlight Halogen | D14: 34 | E14: 1 | F14: 50 | G14: 1.10 | H14: 55 | I14: 1,870 | J14: 6 | K14: 342.21 | L14: 4,095.30 | M14: 10,000.00 | N14: 3.65 | O14: R 55.00 | P14: R 200.00 | Q14: R 50.00 | R14: R 145.00 | S14: 27.38% | T14: R 1,350 | V14: DLV GU10 6W Splash | W14: 34 | X14: =300*AC$5 -> R321.00 | Y14: =X14*W14 -> R10,914.00 | AA14: =SUM(W14*Z14) -> R0.00 | AB14: =SUM(Y14,AA14) -> R10,914.00
C15: Downlight Reflector Lamps | D15: 6 | E15: 1 | F15: 250 | G15: 1.10 | H15: =G15*F15*E15 -> 275 | I15: 1,650 | J15: 6 | K15: =(I15*J15)/1000*30.5 -> 301.95 | L15: =(I15*J15)/1000*365 -> 3,613.50 | M15: 10,000.00 | N15: =M15/(J15*365)*0.8 -> 3.65 | O15: R 500.00 | P15: 0 | Q15: R 450.00 | R15: =(O15*E15)+(P15/5)+Q15 -> R 950.00 | S15: =1/N15 -> 27.38% | T15: R 1,560 | V15: DLV-R 8" 49W | W15: 6 | X15: =1100*AC$5 -> R1,177.00 | Y15: =X15*W15 -> R7,062.00 | AA15: =SUM(W15*Z15) -> R0.00 | AB15: =SUM(Y15,AA15) -> R7,062.00
C16: Open Channel / Deco | D16: 41 | E16: 1 | F16: 36 | G16: 1.10 | H16: 39.6 | I16: 1,624 | J16: 6 | K16: 297.12 | L16: 3,555.68 | M16: 15,000.00 | N16: 5.48 | O16: R 40.00 | P16: R 229.00 | Q16: R 50.00 | R16: R 135.80 | S16: 18.25% | T16: R 1,016 | V16: E-Batten 32W / Marea | W16: 41 | X16: =950*AC$5 -> R1,016.50 | Y16: R41,676.50 | AA16: R0.00 | AB16: R41,676.50
C17: Open Channel / Deco | D17: 5 | E17: 1 | F17: 58 | G17: 1.10 | H17: =G17*F17*E17 -> 63.8 | I17: 319 | J17: 6 | K17: =(I17*J17)/1000*30.5 -> 58.38 | L17: =(I17*J17)/1000*365 -> 698.61 | M17: 15,000.00 | N17: =M17/(J17*365)*0.8 -> 5.48 | O17: R 40.00 | P17: R 229.00 | Q17: R 50.00 | R17: =(O17*E17)+(P17/5)+Q17 -> R 135.80 | S17: =1/N17 -> 18.25% | T17: R 124 | V17: E-Batten 32W / Marea | W17: 5 | X17: R1,016.50 | Y17: =X17*W17 -> R5,082.50 | AA17: =SUM(W17*Z17) -> R0.00 | AB17: =SUM(Y17,AA17) -> R5,082.50
C18: Open Channel / Deco | D18: 15 | E18: 1 | F18: 80 | G18: 1.10 | H18: =G18*F18*E18 -> 88 | I18: 1,320 | J18: 6 | K18: =(I18*J18)/1000*30.5 -> 241.56 | L18: =(I18*J18)/1000*365 -> 2,890.80 | M18: 15,000.00 | N18: =M18/(J18*365)*0.8 -> 5.48 | O18: R 300.00 | P18: R 800.00 | Q18: R 50.00 | R18: =(O18*E18)+(P18/5)+Q18 -> R 510.00 | S18: =1/N18 -> 18.25% | T18: R 1,396 | V18: E-Batten 32W / Marea | W18: 15 | X18: R1,016.50 | Y18: =X18*W18 -> R15,247.50 | AA18: =SUM(W18*Z18) -> R0.00 | AB18: =SUM(Y18,AA18) -> R15,247.50
C19: Open Channel / Deco | D19: 266 | E19: 2 | F19: 36 | G19: 1.10 | H19: 79.2 | I19: 21,067 | J19: 6 | K19: 3,855.30 | L19: 46,137.17 | M19: 15,000.00 | N19: 5.48 | O19: R 40.00 | P19: R 229.00 | Q19: R 50.00 | R19: R 175.80 | S19: 18.25% | T19: R 8,534 | V19: E-Batten 32W / Marea | W19: 266 | X19: R1,016.50 | Y19: R270,389.00 | AA19: R0.00 | AB19: R270,389.00
C20: Open Channel / Deco | D20: 14 | E20: 2 | F20: 58 | G20: 1.10 | H20: 127.6 | I20: 1,786 | J20: 6 | K20: 326.91 | L20: 3,912.22 | M20: 15,000.00 | N20: 5.48 | O20: R 40.00 | P20: R 229.00 | Q20: R 50.00 | R20: R 175.80 | S20: 18.25% | T20: R 449 | V20: E-Batten 32W / Marea | W20: 14 | X20: R1,016.50 | Y20: R14,231.00 | AA20: R0.00 | AB20: R14,231.00
C21: Open Channel / Deco | D21: 5 | E21: 2 | F21: 80 | G21: 1.10 | H21: =G21*F21*E21 -> 176 | I21: 880 | J21: 6 | K21: =(I21*J21)/1000*30.5 -> 161.04 | L21: =(I21*J21)/1000*365 -> 1,927.20 | M21: 15,000.00 | N21: =M21/(J21*365)*0.8 -> 5.48 | O21: R 300.00 | P21: R 800.00 | Q21: R 50.00 | R21: =(O21*E21)+(P21/5)+Q21 -> R 810.00 | S21: =1/N21 -> 18.25% | T21: R 739 | V21: E-Batten 32W / Marea | W21: 5 | X21: R1,016.50 | Y21: =X21*W21 -> R5,082.50 | AA21: =SUM(W21*Z21) -> R0.00 | AB21: =SUM(Y21,AA21) -> R5,082.50
C22: Surface LBR Fitting | D22: 7 | E22: 2 | F22: 58 | G22: 1.10 | H22: =G22*F22*E22 -> 127.6 | I22: 893 | J22: 6 | K22: =(I22*J22)/1000*30.5 -> 163.46 | L22: =(I22*J22)/1000*365 -> 1,956.11 | M22: 15,000.00 | N22: =M22/(J22*365)*0.8 -> 5.48 | O22: R 40.00 | P22: R 229.00 | Q22: R 50.00 | R22: =(O22*E22)+(P22/5)+Q22 -> R 175.80 | S22: =1/N22 -> 18.25% | T22: R 225 | V22: EOS 600x600 LED Panel | W22: 7 | X22: =800*AC$5 -> R856.00 | Y22: R5,992.00 | AA22: R0.00 | AB22: R5,992.00
C23: Open Channel / Deco LED 1 Lamp | D23: 1 | E23: 1 | F23: 20 | G23: 1.10 | H23: 22 | I23: 22 | J23: 6 | K23: 4.03 | L23: 48.18 | M23: 8,000.00 | N23: 2.92 | O23: R 100.00 | Q23: R 50.00 | R23: R 150.00 | S23: 34.22% | T23: R 51 | V23: E-Batten 32W / Marea | W23: 1 | X23: =950*AC$5 -> R1,016.50 | Y23: R1,016.50 | AA23: R0.00 | AB23: R1,016.50
C24: Open Channel / Deco LED 2 Lamp | D24: 5 | E24: 2 | F24: 20 | G24: 1.10 | H24: =G24*F24*E24 -> 44 | I24: 220 | J24: 6 | K24: =(I24*J24)/1000*30.5 -> 40.26 | L24: =(I24*J24)/1000*365 -> 481.80 | M24: 8,000.00 | N24: =M24/(J24*365)*0.8 -> 2.92 | O24: R 100.00 | Q24: R 50.00 | R24: =(O24*E24)+(P24/5)+Q24 -> R 250.00 | S24: =1/N24 -> 34.22% | T24: R 428 | V24: E-Batten 32W / Marea | W24: 5 | X24: =950*AC$5 -> R1,016.50 | Y24: =X24*W24 -> R5,082.50 | AA24: =SUM(W24*Z24) -> R0.00 | AB24: =SUM(Y24,AA24) -> R5,082.50
C25: High Bay Incandescent | D25: 12 | E25: 1 | F25: 500 | G25: 1.10 | H25: =G25*F25*E25 -> 550 | I25: 6,600 | J25: 6 | K25: =(I25*J25)/1000*30.5 -> 1,207.80 | L25: =(I25*J25)/1000*365 -> 14,454.00 | M25: 8,000.00 | N25: =M25/(J25*365)*0.8 -> 2.92 | O25: R 500.00 | Q25: R 450.00 | R25: =(O25*E25)+(P25/5)+Q25 -> R 950.00 | S25: =1/N25 -> 34.22% | T25: R 3,901 | V25: O-Bay 200W | W25: 12 | X25: =1750*AC$5 -> R1,872.50 | Y25: =X25*W25 -> R22,470.00 | AA25: =SUM(W25*Z25) -> R0.00 | AB25: =SUM(Y25,AA25) -> R22,470.00
C26: Floodlight CFL | D26: 2 | E26: 1 | F26: 85 | G26: 1.10 | H26: =G26*F26*E26 -> 93.5 | I26: 187 | J26: 6 | K26: =(I26*J26)/1000*30.5 -> 34.22 | L26: =(I26*J26)/1000*365 -> 409.53 | M26: 10,000.00 | N26: =M26/(J26*365)*0.8 -> 3.65 | O26: R 300.00 | P26: R 600.00 | Q26: R 150.00 | R26: =(O26*E26)+(P26/5)+Q26 -> R 570.00 | S26: =1/N26 -> 27.38% | T26: R 312 | V26: Larvik 100W Floodlight | W26: 2 | X26: =2550*AC$5 -> R2,728.50 | Y26: =X26*W26 -> R5,457.00 | AA26: =SUM(W26*Z26) -> R0.00 | AB26: =SUM(Y26,AA26) -> R5,457.00
C27: Floodlight Mercury Vapour | D27: 6 | E27: 1 | F27: 125 | G27: 1.10 | H27: =G27*F27*E27 -> 137.5 | I27: 825 | J27: 6 | K27: =(I27*J27)/1000*30.5 -> 150.98 | L27: =(I27*J27)/1000*365 -> 1,806.75 | M27: 10,000.00 | N27: =M27/(J27*365)*0.8 -> 3.65 | O27: R 300.00 | P27: R 600.00 | Q27: R 150.00 | R27: =(O27*E27)+(P27/5)+Q27 -> R 570.00 | S27: =1/N27 -> 27.38% | T27: R 936 | V27: Larvik 100W Floodlight | W27: 6 | X27: =2550*AC$5 -> R2,728.50 | Y27: =X27*W27 -> R16,371.00 | AA27: =SUM(W27*Z27) -> R0.00 | AB27: =SUM(Y27,AA27) -> R16,371.00
C28: Floodlight Metal Halide | D28: 49 | E28: 1 | F28: 125 | G28: 1.10 | H28: =G28*F28*E28 -> 137.5 | I28: 6,738 | J28: 6 | K28: =(I28*J28)/1000*30.5 -> 1,232.96 | L28: =(I28*J28)/1000*365 -> 14,755.13 | M28: 10,000.00 | N28: =M28/(J28*365)*0.8 -> 3.65 | O28: R 600.00 | P28: R 1,300.00 | Q28: R 150.00 | R28: =(O28*E28)+(P28/5)+Q28 -> R 1,010.00 | S28: =1/N28 -> 27.38% | T28: R 13,548 | V28: Larvik 100W Floodlight | W28: 49 | X28: =2550*AC$5 -> R2,728.50 | Y28: =X28*W28 -> R133,696.50 | AA28: =SUM(W28*Z28) -> R0.00 | AB28: =SUM(Y28,AA28) -> R133,696.50
C29: Floodlight Halogen | D29: 9 | E29: 1 | F29: 500 | G29: 1.10 | H29: =G29*F29*E29 -> 550 | I29: 4,950 | J29: 6 | K29: =(I29*J29)/1000*30.5 -> 905.85 | L29: =(I29*J29)/1000*365 -> 10,840.50 | M29: 10,000.00 | N29: =M29/(J29*365)*0.8 -> 3.65 | O29: R 300.00 | P29: 0 | Q29: R 150.00 | R29: =(O29*E29)+(P29/5)+Q29 -> R 450.00 | S29: =1/N29 -> 27.38% | T29: R 1,109 | V29: Larvik 100W Floodlight | W29: 9 | X29: =2550*AC$5 -> R2,728.50 | Y29: =X29*W29 -> R24,556.50 | AA29: =SUM(W29*Z29) -> R0.00 | AB29: =SUM(Y29,AA29) -> R24,556.50
B30: Grand Total Fixtures | D30: =SUM(D9:D29) -> 636 | I30: =SUM(I10:I29) -> 56,530 | L30: =SUM(L10:L29) -> 123,801 | T30: =SUM(T10:T29) -> R 41,518 | V30: Contingency for Extra Lighting in certain areas | W30: 64 | X30: =1200*AC$5 -> R1,284.00 | Y30: =X30*W30 -> R82,176.00 | AA30: =SUM(W30*Z30) -> R0.00 | AB30: =SUM(Y30,AA30) -> R82,176.00
V31: Contingency for Emergency Fittings | W31: 64 | X31: =1200*AC$5 -> R1,284.00 | Y31: R82,176.00 | AA31: R0.00 | AB31: R82,176.00
Y32: =SUM(Y10:Y31) -> R854,694.60 | AA32: =SUM(AA10:AA31) -> R0.00
T33: =T30/D30 -> 65.28 | Y33: Sub Total | AA33: Sub Total | AB33: =SUM(AB10:AB31) -> R854,694.60
B34: Energy Efficient Installation
Y35: Total Excluding Vat | AA35: Total Excluding VAT | AB35: =SUM(AB33) -> R854,694.60
C36: Light Type | D36: Qty | E36: #Lamps | F36: Lamp W | G36: Loss Fact. | H36: Indiv. Load | I36: Total Load | J36: Op. Hours | K36: kWh per month | L36: kWh per Annum | M36: Expected Lifespan to L80 | N36: Avg. Re-lamp in years | O36: Cost of Lamp | Q36: Labour cost of Re-lamp | R36: Combined maintenance cost | S36: Annual Maintenance Factor | T36: Annual Maintenance Costs | Y36: Vat | AA36: VAT 15% | AB36: =AB35*15% -> R128,204.19
C37: Titan Bulkhead 21W | D37: 109 | E37: 1 | F37: 136 | G37: 1.10 | H37: =G37*F37*E37 -> 149.6 | I37: =H37*D37 -> 16306.4 | J37: 6 | K37: =(I37*J37)/1000*30.5 -> 2,984.07 | L37: =(I37*J37)/1000*365 -> 35,711.02 | M37: 50,000.00 | N37: =M37/(J37*365)*0.8 -> 18.26 | O37: 0 | P37: 0 | Q37: 0 | R37: =(O37*E37)+(P37/5)+Q37 -> 0 | S37: =1/N37 -> 5.48% | T37: =D37*R37*S37 -> 0 | Y37: Total Including Vat | AA37: Total Including VAT | AB37: =AB36+AB35 -> R982,898.79
C38: DLV-R 6"17W | D38: 14 | E38: 1 | F38: 6 | G38: 1.10 | H38: =G38*F38*E38 -> 6.6 | I38: 92.4 | J38: 6 | K38: =(I38*J38)/1000*30.5 -> 16.91 | L38: =(I38*J38)/1000*365 -> 202.36 | M38: 50,000.00 | N38: =M38/(J38*365)*0.8 -> 18.26 | O38: 0 | P38: 0 | Q38: 0 | R38: =(O38*E38)+(P38/5)+Q38 -> 0 | S38: =1/N38 -> 5.48% | T38: 0
C39: LED Lamp 10W | D39: 36 | E39: 1 | F39: 16 | G39: 1.10 | H39: =G39*F39*E39 -> 17.6 | I39: 633.6 | J39: 6 | K39: 115.95 | L39: 1,387.58 | M39: 50,000.00 | N39: 18.26 | O39: 0 | P39: 0 | Q39: 0 | R39: 0 | S39: 5.48% | T39: 0
C40: DLV GU10 6W Splash | D40: 34 | E40: 1 | F40: 32 | G40: 1.10 | H40: =G40*F40*E40 -> 35.2 | I40: 1196.8 | J40: 6 | K40: 219.01 | L40: 2,620.99 | M40: 50,000.00 | N40: 18.26 | O40: 0 | P40: 0 | Q40: 0 | R40: 0 | S40: 5.48% | T40: 0
C41: DLV-R 8" 49W | D41: 6 | E41: 1 | F41: 30 | G41: 1.10 | H41: 33 | I41: 198 | J41: 6 | K41: 36.23 | L41: 433.62 | M41: 50,000.00 | N41: 18.26 | O41: 0 | P41: 0 | Q41: 0 | R41: 0 | S41: 5.48% | T41: 0
C42: E-Batten 32W / Marea | D42: 352 | E42: 1 | F42: 42 | G42: 1.10 | H42: 46.2 | I42: 16262.4 | J42: 6 | K42: =(I42*J42)/1000*30.5 -> 2,976.02 | L42: =(I42*J42)/1000*365 -> 35,614.66 | M42: 50,000.00 | N42: =M42/(J42*365)*0.8 -> 18.26 | O42: 0 | P42: 0 | Q42: 0 | R42: =(O42*E42)+(P42/5)+Q42 -> 0 | S42: =1/N42 -> 5.48% | T42: 0
C43: EOS 600x600 LED Panel | D43: 7 | E43: 1 | F43: 10 | G43: 1.10 | H43: 11 | I43: 77 | J43: 6 | K43: 14.09 | L43: 168.63 | M43: 50,000.00 | N43: 18.26 | O43: 0 | P43: 0 | Q43: 0 | R43: 0 | S43: 5.48% | T43: 0
C44: O-Bay 200W | D44: 12 | E44: 1 | F44: 100 | G44: 1.10 | H44: =G44*F44*E44 -> 110 | I44: 1320 | J44: 6 | K44: =(I44*J44)/1000*30.5 -> 241.56 | L44: =(I44*J44)/1000*365 -> 2,890.80 | M44: 50,000.00 | N44: =M44/(J44*365)*0.8 -> 18.26 | O44: 0 | P44: 0 | Q44: 0 | R44: =(O44*E44)+(P44/5)+Q44 -> 0 | S44: =1/N44 -> 5.48% | T44: 0
C45: Larvik 100W Floodlight | D45: 66 | I45: 0 | J45: 6 | K45: 0 | L45: 0 | M45: 50,000.00 | N45: 18.26 | O45: 0 | P45: 0 | Q45: 0 | R45: =(O45*E45)+(P45/5)+Q45 -> 0 | S45: 5.48% | T45: 0
D46: 636 | I46: =SUM(I37:I45) -> 36086.6 | L46: =SUM(L37:L45) -> 79,029.65
B47: Totals

Sheet SloanLED Breakdown (hidden)
X1: Price Source
X2: Cool L | Y2: Hans | AA2: Sell Price | AB2: Sell
V3: Product Description | W3: Qty | X3: USD$ | Y3: USD$ | Z3: Total $ | AB3: Total
D4: 21W Medium Lentgh & thin | E4: 8 | F4: 1 | G4: 21 | H4: 1.10 | I4: 23.1 | J4: 185 | K4: 24 | L4: 135 | M4: 1619 | N4: 20000 | O4: 1.83 | P4: R 50.00 | Q4: R 50.00 | R4: R 25.00 | S4: R 85.00 | T4: 54.75% | U4: R 372 | V4: Large Branded Circular LED Retrofit | W4: 9 | X4: Unknown | Z4: =Y4*W4 -> 0 | AA4: 7500.00 | AB4: 67500.00 | AC4: 388.50 | AD4: 3496.50 | AE4: 70996.50
C5: Room 1 | D5: Fluorescent 36W 1.2 | E5: 1 | F5: 4 | G5: 36 | H5: 1.10 | I5: 158.4 | J5: 158 | K5: 24 | L5: 116 | M5: 1388 | N5: 20000 | O5: 1.83 | P5: R 50.00 | Q5: R 50.00 | R5: R 25.00 | S5: R 235.00 | T5: 54.75% | U5: R 129 | V5: SloanLED Vista 600 x 1200 50W 4000K | W5: 1 | Y5: $45.00 | Z5: =Y5*W5 -> $45.00 | AA5: R 1,215.00 | AB5: R 1,062.50 | AC5: 233.10 | AD5: 233.10 | AE5: 1295.60
C6: Room 2 | D6: Fluorescent 36W 1.2 | E6: 8 | F6: 4 | G6: 36 | H6: 1.10 | I6: 158.4 | J6: 1267 | K6: 24 | L6: 928 | M6: 11101 | N6: 20000 | O6: 1.83 | P6: R 50.00 | Q6: R 50.00 | R6: R 25.00 | S6: R 235.00 | T6: 54.75% | U6: R 1,029 | V6: SloanLED Vista 600 x 1200 50W 4000K | W6: 8 | Y6: $45.00 | Z6: $360.00 | AA6: R 1,215.00 | AB6: R 8,500.00 | AC6: 233.10 | AD6: 1864.80 | AE6: 10364.80
C7: Room 3 | D7: Fluorescent 36W 1.2 | E7: 3 | F7: 4 | G7: 36 | H7: 1.10 | I7: 158.4 | J7: 475 | K7: 24 | L7: 348 | M7: 4163 | N7: 20000 | O7: 1.83 | P7: R 50.00 | Q7: R 50.00 | R7: R 25.00 | S7: R 235.00 | T7: 54.75% | U7: R 386 | V7: SloanLED Vista 600 x 1200 50W 4000K | W7: 3 | Y7: $45.00 | Z7: $135.00 | AA7: R 1,215.00 | AB7: R 3,187.50 | AC7: 233.10 | AD7: 699.30 | AE7: 3886.80
C8: Room 4 | D8: Fluorescent 36W 1.2 | E8: 4 | F8: 4 | G8: 36 | H8: 1.10 | I8: 158.4 | J8: 634 | K8: 24 | L8: 464 | M8: 5550 | N8: 20000 | O8: 1.83 | P8: R 50.00 | Q8: R 50.00 | R8: R 25.00 | S8: R 235.00 | T8: 54.75% | U8: R 515 | V8: SloanLED Vista 600 x 1200 50W 4000K | W8: 4 | Y8: $45.00 | Z8: $180.00 | AA8: R 1,215.00 | AB8: R 4,250.00 | AC8: 233.10 | AD8: 932.40 | AE8: 5182.40
C9: Control Room | D9: Fluorescent 36W 1.2 | E9: 4 | F9: 4 | G9: 36 | H9: 1.10 | I9: 158.4 | J9: 634 | K9: 24 | L9: 464 | M9: 5550 | N9: 20000 | O9: 1.83 | P9: R 50.00 | Q9: R 50.00 | R9: R 25.00 | S9: R 235.00 | T9: 54.75% | U9: R 515 | V9: SloanLED Vista 600 x 1200 50W 4000K | W9: 4 | Y9: $45.00 | Z9: $180.00 | AA9: R 1,215.00 | AB9: R 4,860.00 | AC9: 233.10 | AD9: 932.40 | AE9: 5792.40
B10: Open Parking Entrance 1 | C10: Round Head | D10: Globe 125W (screw) | E10: 10 | F10: 1 | G10: 125 | H10: 1.10 | I10: 137.5 | J10: 1375 | K10: 24 | L10: 1007 | M10: 12045 | N10: 20000 | O10: 1.83 | P10: R 50.00 | Q10: R 50.00 | R10: R 25.00 | S10: R 85.00 | T10: 54.75% | U10: R 465 | V10: SloanLED Optimus 100W | W10: 25 | Y10: $117.93 | Z10: $2,948.25 | AA10: R 2,985.00 | AB10: R 29,850.00 | AC10: 352.98 | AD10: 3529.80 | AE10: 33379.80
C11: TANGA | D11: Floodlights | E11: 2 | F11: 1 | G11: 400 | H11: 1.10 | I11: 440 | J11: 880 | K11: 24 | L11: 644 | M11: 7709 | N11: 20000 | O11: 1.83 | P11: R 50.00 | Q11: R 50.00 | R11: R 25.00 | S11: R 85.00 | T11: 54.75% | U11: R 93 | V11: SloanLED Solarta Flood 70W | W11: 2 | Y11: $75.00 | Z11: $150.00 | AA11: R 1,900.00 | AB11: R 3,800.00 | AC11: 352.98 | AD11: 705.96 | AE11: 4505.96
B12: Perimeter Lights | C12: Round Head | D12: Globe 125W (screw) | E12: 39 | F12: 1 | G12: 125 | H12: 1.10 | I12: 137.5 | J12: 5363 | K12: 24 | L12: 3925 | M12: 46976 | N12: 20000 | O12: 1.83 | P12: R 50.00 | Q12: R 50.00 | R12: R 25.00 | S12: R 85.00 | T12: 54.75% | U12: R 1,815 | V12: SloanLED Optimus 100W | W12: 39 | Y12: $117.93 | Z12: $4,599.27 | AA12: R 2,985.00 | AB12: R 116,415.00 | AC12: 352.98 | AD12: 13766.22 | AE12: 130181.22
B13: Open Parking Entrance 2 | C13: Round Head | D13: Globe 125W (screw) | E13: 20 | F13: 1 | G13: 125 | H13: 1.10 | I13: 137.5 | J13: 2750 | K13: 24 | L13: 2013 | M13: 24090 | N13: 20000 | O13: 1.83 | P13: R 50.00 | Q13: R 50.00 | R13: R 25.00 | S13: R 85.00 | T13: 54.75% | U13: R 931 | V13: SloanLED Optimus 100W | W13: 20 | Y13: $117.93 | Z13: $2,358.60 | AA13: R 2,985.00 | AB13: R 59,700.00 | AC13: 352.98 | AD13: 7059.60 | AE13: 66759.60
B14: Rooftop Parking | C14: Round Head | D14: Globe 125W (screw) | E14: 25 | F14: 1 | G14: 125 | H14: 1.10 | I14: 137.5 | J14: 3438 | K14: 24 | L14: 2516 | M14: 30113 | N14: 20000 | O14: 1.83 | P14: R 50.00 | Q14: R 50.00 | R14: R 25.00 | S14: R 85.00 | T14: 54.75% | U14: R 1,163 | V14: SloanLED Optimus 100W | W14: 25 | Y14: $117.93 | Z14: $2,948.25 | AA14: R 2,985.00 | AB14: R 74,625.00 | AC14: 352.98 | AD14: 8824.50 | AE14: 83449.50
D15: Floodlights | E15: 6 | F15: 1 | G15: 400 | H15: 1.10 | I15: 440 | J15: 2640 | K15: 24 | L15: 1932 | M15: 23126 | N15: 20000 | O15: 1.83 | P15: R 50.00 | Q15: R 50.00 | R15: R 25.00 | S15: R 85.00 | T15: 54.75% | U15: R 279 | V15: SloanLED Solarta Flood 70W | W15: 6 | Y15: $75.00 | Z15: $450.00 | AA15: R 1,900.00 | AB15: R 11,400.00 | AC15: 352.98 | AD15: 2117.88 | AE15: 13517.88
B16: Generator / Receiving Area | C16: TANGA | D16: Floodlight | E16: 1 | F16: 1 | G16: 400 | H16: 1.10 | I16: 440 | J16: 1320 | K16: 24 | L16: 966 | M16: 11563 | N16: 20000 | O16: 1.83 | P16: R 50.00 | Q16: R 50.00 | R16: R 25.00 | S16: R 135.00 | T16: 54.75% | U16: R 222 | V16: SloanLED Solarta Flood 70W | W16: 1 | Y16: $75.00 | Z16: $75.00 | AA16: R 1,900.00 | AB16: R 1,900.00 | AC16: 352.98 | AD16: 352.98 | AE16: 2252.98
C17: TANGA | D17: Floodlight (Big) | E17: 1 | F17: 1 | G17: 400 | H17: 1.10 | I17: 440 | J17: 440 | K17: 24 | L17: 322 | M17: 3854 | N17: 20000 | O17: 1.83 | P17: R 50.00 | Q17: R 50.00 | R17: R 25.00 | S17: R 85.00 | T17: 54.75% | U17: R 47 | V17: SloanLED Solarta Flood 70W | W17: 1 | Y17: $75.00 | Z17: $75.00 | AA17: R 1,900.00 | AB17: R 2,025.00 | AC17: 352.98 | AD17: 352.98 | AE17: 2377.98
B18: Floodlights Various Areas | D18: Floodlights | E18: 15 | F18: 1 | G18: 400 | H18: 1.10 | I18: 440 | J18: 6600 | K18: 24 | L18: 4831 | M18: 57816 | N18: 20000 | O18: 1.83 | P18: R 50.00 | Q18: R 50.00 | R18: R 25.00 | S18: R 85.00 | T18: 54.75% | U18: R 698 | V18: SloanLED Solarta Flood 70W | W18: 15 | Y18: $75.00 | Z18: $1,125.00 | AA18: R 1,900.00 | AB18: R 28,500.00 | AC18: 352.98 | AD18: 5294.70 | AE18: 33794.70
D19: Floodlights (Big) Assume 4 on 1 pole | E19: 4 | F19: 1 | G19: 400 | H19: 1.10 | I19: 440 | J19: 1760 | K19: 24 | L19: 1288 | M19: 15418 | N19: 20000 | O19: 1.83 | P19: R 50.00 | Q19: R 50.00 | R19: R 25.00 | S19: R 85.00 | T19: 54.75% | U19: R 186 | V19: SloanLED Optimus 150W | W19: 4 | Y19: $172.00 | Z19: $688.00 | AA19: R 4,350.00 | AB19: R 17,400.00 | AC19: 352.98 | AD19: 1411.92 | AE19: 18811.92
D20: Fluorescent 58W 1.5 | E20: 1 | F20: 2 | G20: 58 | H20: 1.10 | I20: 127.6 | J20: 128 | P20: R 50.00 | Q20: R 50.00 | V20: SloanLED SurfLite1 45W 4000K | W20: 1 | Y20: $80.00 | Z20: $80.00 | AA20: R 2,160.00 | AB20: R 2,160.00 | AC20: 255.30 | AD20: 255.30 | AE20: 2415.30
D21: Globe 26W 4 Pin | E21: 8 | F21: 2 | G21: 26 | H21: 1.10 | I21: 57.2 | J21: 458 | K21: 24 | L21: 335 | M21: 4009 | N21: 20000 | O21: 1.83 | P21: R 50.00 | Q21: R 50.00 | R21: R 25.00 | S21: R 135.00 | T21: 54.75% | U21: R 591 | V21: SloanLED Detroit 45W Wall Pack | W21: 17 | Y21: $70.00 | Z21: $1,190.00 | AA21: R 1,798.99 | AB21: R 14,391.92 | AC21: 138.75 | AD21: 1110.00 | AE21: 15501.92
D22: Globe 125W Screw | E22: 4 | F22: 1 | G22: 125 | H22: 1.10 | I22: 137.5 | J22: 550 | K22: 24 | L22: 403 | M22: 4818 | N22: 20000 | O22: 1.83 | P22: R 50.00 | Q22: R 50.00 | R22: R 25.00 | S22: R 85.00 | T22: 54.75% | U22: R 186 | V22: SloanLED Optimus 100W | W22: 4 | Y22: $117.93 | Z22: $471.72 | AA22: R 2,985.00 | AB22: R 11,940.00 | AC22: 352.98 | AD22: 1411.92 | AE22: 13351.92
D23: Globe 250W Screw | E23: 4 | F23: 1 | G23: 250 | H23: 1.10 | I23: 275 | J23: 1100 | K23: 24 | L23: 805 | M23: 9636 | N23: 20000 | O23: 1.83 | P23: R 50.00 | Q23: R 50.00 | R23: R 25.00 | S23: R 85.00 | T23: 54.75% | U23: R 186 | V23: SloanLED Optimus 100W | W23: 4 | Y23: $117.93 | Z23: $471.72 | AA23: R 2,985.00 | AB23: R 11,940.00 | AC23: 352.98 | AD23: 1411.92 | AE23: 13351.92
V24: SloanLED Twilight 40W4000K Black IP65 | W24: 3 | Y24: $205.00 | Z24: $615.00 | AA24: R 5,535.00 | AB24: =AA24*W24 -> R 16,605.00
V25: Total Potential Order | Z25: =SUM(Z4:Z24) -> $19,145.81 | AB25: =SUM(AB4:AB24) -> R 492,011.92
AA26: R 15.00 | AB26: R 1.35

Sheet Data Summary (hidden)
C4: Total Load | D4: kWatts per day | E4: kWatts per month | F4: Daily Energy Cost | G4: Monthly Energy Cost | H4: P.A Ave. Maintenace
B5: Old | C5: ='Study Data'!#REF! -> 
B6: New | C6: ='Study Data'!#REF! -> 
B7: Demand saved | C7: =C5-C6 -> 
B9: Power charge | C9: R 1.00 | D9: average
B10: Est Annual Maintenance Old | C10: ='Study Data'!#REF! -> 
B11: Est Annual Maintenance New | C11: ='Study Data'!#REF! -> 
B12: Capital | C12: =#REF! -> 
C15: kWh/m | D15: kWh/yr | E15: Annual Energy Cost
B16: Existing Consumption | C16: =30.5*C5*12/1000 ->  | D16: =C5*(1-0%)*23*365/1000 ->  | E16: =C9*D16 ->  | F16: =E16/12 -> 
B17: Proposed Consumption | C17: =30.5*C6*12/1000 ->  | D17: =C6*(1-68%)*23*365/1000 ->  | E17: =D17*C9 ->  | F17: =E17/12 -> 

Sheet Luca Breakdown (hidden)
B3: Description | C3: Qty | I3: Unit Price | J3: Total Price
B4: DLE-12-ST-N-750-High Bay 14650Lm 5000K | C4: 90 | I4: R 11,980.00 | J4: =C4*I4 -> 1,078,200
B5: DLE-12-ST-W-750-High Bay 14650Lm 5000K | C5: 16 | I5: R 11,980.00 | J5: =C5*I5 -> 191,680
B6: DLE Fixed Mount Hanging Hardware for 5 Fixtures | C6: =(C4+C5)/5+1 -> 22 | I6: R 392.00 | J6: =I6*C6 -> 8,702
B7: DLE Wago Connector 3m | C7: 106 | I7: 392.00 | J7: =I7*C7 -> 41,552
B8: Delivery to Site | C8: 1 | I8: 7,500 | J8: =I8*C8 -> 7,500
I9: Total for Luminaires, ex VAT | J9: =SUM(J4:J8) -> 1,327,634
B10: Project Management | I10: =(J9+J16)*0.025 -> 36,638 | J10: =I10 -> 36,638 | M10: Total Fixtures
B11: Light Rules | C11: Qty | I11: Unit | J11: Total | M11: DLE 12 | N11: =C27+C28+C29+C30 -> 133 | Q11: PM | R11: =(#REF!+#REF!+J38+#REF!+J39)*0.02 -> 
B12: DL Gateways | C12: 3 | I12: 15,008 | J12: =I12*C12 -> 45,024 | M12: DLE 18 | N12: =C31 -> 106
B13: LightRules Installation & Commissioning | C13: 1 | I13: 37,100 | J13: =I13*C13 -> 37,100 | M13: Total | N13: =N11+N12 -> 239
B14: PoE Switch, eight ports | C14: 1 | I14: 7,700 | J14: =I14*C14 -> 7,700
B15: LightRules up to 250 Nodes (Desktop) | C15: 1 | I15: 48,063 | J15: =I15*C15 -> 48,063 | M15: Installation
B16: Total for LightRules, ex VAT | J16: =SUM(J12:J15) -> 137,887 | M16: 350 | N16: =M16*N13 -> 83650
M17: Cherry | N17: 37458
B18: ='Study Data'!#REF! ->  | C18: ='Study Data'!#REF! ->  | I18: Cash Purchase | J18: =#REF! ->  | M18: Cable | N18: 10200 | P18: Rounded off
I19: Rental per month | J19: ='Rental Calculator'!H15 ->  | N19: =SUM(N16:N18) -> 131308 | O19: =N19/0.65 -> 202012.3077 | P19: 205000
I20: Annualised Rental | J20: =J19*12 -> 
B25: Clover City Deep | G25: Sell | N25: Less | O25: Less | P25: Tot Discount | Q25: Less | R25: Less | S25: Tot Disc
B26: Description | C26: Qty | D26: DL $ | E26: 10% | F26: 5% | G26: Price | H26: Total Order | I26: Unit | J26: Total | L26: DLE12 | M26: List Price | N26: 10% | O26: 5% | P26: 15% | Q26: 10% | R26: 5% | S26: 15% | T26: 15% | U26: 10%
B27: DLE-12-ST-W-840-High Bay 12600lm 4000k 20-20 | C27: 72 | D27: 467.7 | E27: 46.77 | F27: 23.39 | G27: =D27-E27-F27 -> 397.54 | H27: =G27*C27 -> 28622.88 | I27: 11,037.00 | J27: =C27*I27 -> 794,664 | L27: 135 | M27: 11037 | N27: 9934 | O27: 10485 | P27: 9382 | Q27: =M27-N27 -> 1103 | R27: =M27-O27 -> 552 | S27: =M27-P27 -> 1655 | T27: =N11*S27 -> 220115 | U27: =Q27*N11 -> 146699
B28: DLE-12-ST-W-840-High Bay 12600lm 4000k 0-0 | C28: 9 | D28: 467.7 | E28: 46.77 | F28: 23.39 | G28: =D28-E28-F28 -> 397.54 | H28: 3577.86 | I28: 11,037.00 | J28: =C28*I28 -> 99,333
B29: DLE-12-ST-N-840-High Bay 12600lm 4000k 20-20 | C29: 42 | D29: 467.7 | E29: 46.77 | F29: 23.39 | G29: =D29-E29-F29 -> 397.54 | H29: 16696.68 | I29: 11,037.00 | J29: =C29*I29 -> 463,554
B30: DLE-12-ST-W-840-High Bay 12600lm 4000k 20-20 | C30: 10 | D30: 467.7 | E30: 46.77 | F30: 23.39 | G30: =D30-E30-F30 -> 397.54 | H30: 3975.4 | I30: 11,037.00 | J30: =C30*I30 -> 110,370 | L30: DLE18
B31: DLE-18-ST-N-840-High Bay 19100lm 4000k 20-20 | C31: 106 | D31: 593.28 | E31: 59.33 | F31: 29.66 | G31: =D31-E31-F31 -> 504.29 | H31: 53454.74 | I31: 14,127.00 | J31: =C31*I31 -> 1,497,462 | L31: 106 | M31: 14127 | N31: =+M31*(1-N26) -> 12714 | O31: =+M31*(1-O26) -> 13421 | P31: =+M31*(1-P26) -> 12008 | Q31: =M31-N31 -> 1413 | R31: =M31-O31 -> 706 | S31: =M31-P31 -> 2119 | T31: =S31*N12 -> 224619.3 | U31: =Q31*N12 -> 149746.2
B32: DLE Fixed Mount Hanging Hardware for 5 Fixtures | C32: 49 | D32: 15 | E32: 0 | F32: 0 | G32: 15 | H32: 735 | I32: 11,037.00 | J32: =#REF!*I32 ->  | L32: =L31+L27 -> 241 | T32: =T27+T31 -> 444734.3 | U32: =U27+U31 -> 296445.2
B33: DLE Wago Connector 3m | C33: =SUM(C27:C31) -> 239 | D33: 15 | E33: 0 | F33: 0 | G33: 15 | H33: 3585 | I33: 346.00 | J33: =I33*C32 -> 16,954 | L33: =L32/50 -> 4.82
B34: Total Fixtures & Accessories | H34: =SUM(H27:H33) -> 110647.56 | I34: 346.00 | J34: =I34*C33 -> 82,694
B37: Light Rules | C37: Qty | D37: $ | G37: $ | I37: Rands | J37: Rands
B38: DL Gateways | C38: 5 | D38: 575 | E38: 0 | F38: 0 | G38: 575 | H38: =G38*C38 -> 2,875 | I38: 13,253 | J38: =I38*C38 -> 66,265
B39: PoE Switch, eight ports | C39: 2 | D39: 295 | E39: 0 | F39: 0 | G39: 295 | H39: =G39*C39 -> 590 | I39: 6,799 | J39: =I39*C39 -> 13,598
B40: Total | H40: =SUM(H38:H39) -> 3,465
B42: Total Order | H42: =H34+H40 -> 114,113
B45: Siteworx Options | C45: Nodes | D45: $/node | G45: $/node
B46: Siteworx (Tune Pro)Paid to Digial Lumens per year | C46: =C33 -> 239 | D46: 5 | E46: 0 | F46: 0 | G46: 5 | H46: =G46*C46 -> 1,195 | I46: 67 | J46: =I46*C46 -> 16,013
B47: Siteworx (Tune Basic)Paid to Digial Lumens per year | C47: =C33 -> 239 | D47: 1 | E47: 0 | F47: 0 | G47: 1 | H47: =G47*C47 -> 239 | I47: 13 | J47: =I47*C47 -> 3,203

Sheet Print Quote (hidden)
B2: Tuesday 13 October 2015
B4: Engen – Jack Street
B5: Mr. Macintyre
B9: Re: Quotation for Cree LED Site & Forecourt lighting
B11: Dear Partners
B13: It is with great pleasure that we present this quotation to you for the supply of new Engen specification LED lighting for your canopy, forecourt and interior.
B16: We have performed a lighting analysis, the quotation based on the results are herewith attached for your perusal.
B18: Please also keep in mind that there is a finance option available to you and that will carry the VAT benefits as well as keeping you liquid.
B21: Quote
B22: Installed Area | C22: Description | D22: Qty | E22: Unit Price | F22: Total Price
B23: Main Canopy | C23: Cree CPY 250 Recessed Mount Canopy Luminaire, 60LED, 700mA, 6000K, complete with Mounting Bracket - No Sensor | D23: 14 | E23: Main Canopy | F23: Cree CPY 250 Recessed Mount Canopy Luminaire, 60LED, 700mA, 6000K, complete with Mounting Bracket - No Sensor | G23: 14 | H23: R 8,446.00 | I23: =SUM(G23*H23) -> R 118,244.00
B24: Perimeter Sign | C24: Cree Ledway Road 20 LED, QV optic, 700mA, 6000K (Mounted back to back, incl retrofit bracket) | D24: 1 | E24: Perimeter Sign | F24: Cree Ledway Road 20 LED, QV optic, 700mA, 6000K (Mounted back to back, incl retrofit bracket) | G24: 1 | H24: R 14,801.00 | I24: =SUM(G24*H24) -> R 14,801.00
B25: Bollards | C25: Pathway 900mm Symmetrical Beam LED Bollard | D25: 3 | E25: Bollards | F25: Pathway 900mm Symmetrical Beam LED Bollard | G25: 10 | H25: R 8,069.00 | I25: R 80,690.00
B26: Diesel Pump | C26: Cree Ledway Road 20 LED, QV optic, 700mA, 6000K (Mounted back to back, incl retrofit bracket) | D26: 1 | E26: Diesel Filler | F26: Cree 1lt Ledway Road 20 LED, QV optic in white including Retrofit Spigot | G26: 2 | H26: R 7,405.00 | I26: R 14,810.00
B27: Bulkheads on building | C27: Edgelit LED Wall Mounted Bulkhead Assymetrical Optic 4000K 25W | D27: 10 | E27: Bulkheads on building | F27: BetaLED Wall Pack with mounting bracket | G27: 10 | H27: R 8,549.00 | I27: R 85,490.00
B28: Point of Sale | C28: LK.GYRO2.3040840.WH Double Gyro Recessed Spotlight | D28: 2 | E28: Point of Sale | F28: LK.GYRO2.3040840.WH Double Gyro Recessed Spotlight | G28: 2 | H28: R 7,695.00 | I28: R 15,390.00
B29: Spot Lights on Cable Tray | C29: CLS Revo Basic 12 Degree Symmetrical Surface Mounted LED Spotlight | D29: 8 | E29: Spot Lights on Cable Tray | F29: CLS Revo Basic 12 Degree Symmetrical Surface Mounted LED Spotlight | G29: 8 | H29: R 3,795.00 | I29: R 30,360.00
B30: Cable tray Lighting | C30: 54W Fluorescent Batton with Reflector | D30: 16 | E30: Cable tray Lighting | F30: 54W Fluorescent Batton with Reflector | G30: 14 | H30: R 450.00 | I30: =SUM(G30*H30) -> R 6,300.00
B31: Toilets | C31: Cree CR 150 - 1000 Lumen 4000K 90+ CRI high efficacy LED downlight | D31: 8 | E31: Toilets | F31: Cree CR 150 - 1000 Lumen 4000K 90+ CRI high efficacy LED downlight | G31: 8 | H31: R 1,590.00 | I31: =SUM(G29*H31) -> R 12,720.00
B32: Store room | C32: LED Weatherproof surface mounted luminaire | D32: 4 | E32: Installation | F32: Safety Files, Removal of old fixtures, Scaffolding and Labour/Travel | G32: 1 | H32: R 35,000.00 | I32: =H32*G32 -> R 35,000.00
B33: Entrance | C33: Cree Ledway Road 20 LED, QV optic, 700mA, 6000K ( incl retrofit bracket) | D33: 1 | E33: ='Study Data'!#REF! ->  | F33: ='Study Data'!#REF! ->  | G33: ='Study Data'!#REF! ->  | H33: Cash Purchase | I33: =SUM(I23:I32) -> R 413,805.00
B34: 5M Pole | C34: 5m Surface Mounted Galvanized Pole and Powder Coated White with Base plate and Bolt cage Single or Double spigot | D34: 3 | H34: Rental per month | I34: =#REF! -> 
B35: Vents | C35: Cree Ledway Road 20 LED, QV optic, 700mA, 6000K (Mounted back to back, incl retrofit bracket) | D35: 1 | H35: Annualised Rental | I35: =I34*12 -> 
B36: Diesel Dispenser Remote | C36: Cree Ledway Road 20 LED, QV optic, 700mA, 6000K (Mounted back to back, incl retrofit bracket) | D36: 1
B38: The Cree outdoor products carry a 10 year warranty (no serviceable parts) on the housing, internal electronics or components and excessive lumen depreciation. The rated fixture life is >150,000hrs to L70 @ 20⁰C. With maximum energy savings and the longest guaranteed maintenance free period, Cree is the global leader in Petroleum LED today.
B43: Term & Conditions:
B44: • This quotation is valid for 7 days and subject to change without notice
B45: • This quotation excludes VAT & Transport
B46: • All Cree outdoor products carry a 10 year warranty
B47: • Although the items in this quote are Engen Stock items, stock availability is subject to change and lead times could apply. Please confirm at time of order.
B49: • Payment is due with order before delivery for non account holders.
B50: • Errors & Omissions Excluded
B52: I hereby accept the terms and conditions of the quotation above and are authorized to sign this document. Please forward the Pro Forma for payment.
B56: Signed: | D56: Date:
B59: Purchase Order Number - _______________________
B61: Sincerley
B70: Martin De La Rey
B71: Petroleum Projects

Sheet Sheet2 (hidden)
A1: 1 | B1: Pv
A2: 2 | B2: 1000
A3: 3
A4: 4
A5: 5
A6: 6
A7: 7
A8: 8
A9: 9
A10: 10
A11: 11
A12: 12
A13: 13
A14: 14
A15: 15
A16: 16
A17: 17
A18: 18
A19: 19
A20: 20
A21: 21
A22: 22
A23: 23
A24: 24
A25: 25
A26: 26
A27: 27
A28: 28
A29: 29
A30: 30
A31: 31
A32: 32
A33: 33
A34: 34
A35: 35
A36: 36
A37: 37
A38: 38
A39: 39
A40: 40
A41: 41
A42: 42
A43: 43
A44: 44
A45: 45
A46: 46
A47: 47
A48: 48
A49: 49
A50: 50
A51: 51
A52: 52
A53: 53
A54: 54
A55: 55
A56: 56
A57: 57
A58: 58
A59: 59
A60: 60
